Workbook

Sheet Bilgi Girişi
F2: Hesaplamaya İlişkin Mevcut Maaş ve Kişisel Bilgilerinizi Aşağıdaki Personel Bilgileri Alanına Giriniz | K2: Bu Ödeme Kıst Maaş mı?
F3: Kurum : | K3: Ay Günü: | L3: 30
C4: =IF(F4="",0,1) -> 1 | E4: 1 | F4: Ay / YIL | H4: =+'Değerler Tablosu'!E5 -> 2018 | I4: Birim | K4: Bordro Günü | L4: 30
F5: Personel Bilgileri
F6: KİŞİSEL BİLGİLER
B7: =IF(J7=0,0,1) -> 1 | C7: =IF(F7="",0,1) -> 0 | D7: 0 | E7: =IF(F7="",0,SUM($C$4:C7)) -> 0 | F7: =IF(G4="","","Personel Durumu") ->  | I7: =IF(B7=0,0,IF(J7="","",SUM($C$4:C40)+SUM($B$4:B7))) ->  | J7: =IF(G7="","",IF(G15='Bilgi Girişi'!F92,0,"Özel Hizmet Tazminatı Oranı %")) -> 
B8: =IF(J8=0,0,1) -> 1 | C8: 0 | E8: =IF(F8="",0,SUM($C$4:C8)) -> 0 | F8: =IF(G7="","","T.C. Kimlik Numarası") ->  | I8: =IF(B8=0,0,IF(J8="","",SUM($C$4:C41)+SUM($B$4:B8))) ->  | J8: =IF(G7="","",IF(G15='Bilgi Girişi'!F92,0,"Mali Sorumluk Zammı Puanı")) -> 
B9: 1 | C9: 0 | E9: =IF(F9="",0,SUM($C$4:C9)) -> 0 | F9: =IF(G7="","","Kurum Sicil Numarası") ->  | I9: =IF(B9=0,0,IF(J9="","",SUM($C$4:C42)+SUM($B$4:B9))) ->  | J9: =IF(G7="","",IF(G15='Bilgi Girişi'!F92,0,"İş Riski Zammı Puanı")) -> 
B10: 1 | C10: 0 | E10: =IF(F10="",0,SUM($C$4:C10)) -> 0 | F10: =IF(G7="","","Emekli sicil Numarası") ->  | I10: =IF(B10=0,0,IF(J10="","",SUM($C$4:C43)+SUM($B$4:B10))) ->  | J10: =IF(G7="","",IF(G15='Bilgi Girişi'!F92,0,"Tem.Güç.Zammı Puanı")) -> 
B11: 1 | C11: 0 | E11: =IF(F11="",0,SUM($C$4:C11)) -> 0 | F11: =IF(G7="","","Adınız Soyadınız") ->  | I11: =IF(B11=0,0,IF(J11="","",SUM($C$4:C44)+SUM($B$4:B11))) ->  | J11: =IF(G7="","",IF(G15='Bilgi Girişi'!F92,0,"Yan Ödeme Puan Toplamı")) ->  | K11: =SUM(K8:L10) -> 0
B12: 1 | C12: 0 | E12: =IF(F12="",0,SUM($C$4:C12)) -> 0 | F12: =IF(G7="","","Medeni Haliniz") ->  | I12: =IF(B12=0,0,IF(J12="","",SUM($C$4:C45)+SUM($B$4:B12))) ->  | J12: =IF(G7="","",IF(G15='Bilgi Girişi'!F91,"(İdari Personel İçin )Yabancı Diliniz Varmı ?/Düzeyi",0)) -> 
E13: =IF(F13="",0,SUM($C$4:C13)) -> 0 | F13: =IF(G7="","",IF(G12="Bekar","",IF(G12="","",CONCATENATE("Çocuk Sayınız","/"," Asgari Geçim İndirimine Esas")))) ->  | I13: =IF(B14=0,0,IF(J13="","",SUM($C$4:C46)+SUM($B$4:B14))) -> 0 | J13: =IF(G15='Bilgi Girişi'!F92,"(Akademik Personel İçin )Yabancı Diliniz Varmı ? / Düzeyi",0) -> 0
B14: =IF(J13=0,0,1) -> 0 | C14: 0 | E14: =IF(F14="",0,SUM($C$4:C14)) -> 0 | F14: =IF(G7="","",IF(G12="Bekar","",IF(G12="","",CONCATENATE("Çocuk Sayınız","/"," Ödemeye Esas")))) ->  | I14: =IF(B15=0,0,IF(J14="","",SUM($C$4:C47)+SUM($B$4:B15))) -> 0 | J14: =IF(G15='Bilgi Girişi'!F92,"Yüksek Öğrenim Tazminatı Oranı %",0) -> 0
B15: =IF(J14=0,0,1) -> 0 | C15: 0 | E15: =IF(F15="",0,SUM($C$4:C15)) -> 0 | F15: =IF(G7="","","Kadro Durumunuz ( İ / A )") ->  | I15: =IF(B16=0,0,IF(J15="","",SUM($C$4:C48)+SUM($B$4:B16))) ->  | J15: =IF(G7="","","Döner Sermaye Alıyormusunuz ?") -> 
B16: =IF(J15=0,0,1) -> 1 | C16: 0 | E16: =IF(F16="",0,SUM($C$4:C16)) -> 0 | F16: =IF(G7="","","Kadro Ünvanınız") ->  | I16: =IF(B17=0,0,IF(J16="","",SUM($C$4:C49)+SUM($B$4:B17))) ->  | J16: =IF(G7="","",IF(K15="Evet",0,"Ek Ödeme Oranınız")) -> 
B17: =IF(J16=0,0,1) -> 1 | C17: =IF(F17="",0,1) -> 0 | E17: =IF(F17="",0,SUM($C$4:C17)) -> 0 | F17: =IF(G7="","","Bu Ay Maaş D/K Terfiniz Varmı ?") ->  | I17: =IF(B18=0,0,IF(J17="","",SUM($C$4:C50)+SUM($B$4:B18))) ->  | J17: =IF(G7="","","İdari Göreviniz Varmı ? / Oranını % Giriniz") -> 
B18: =IF(J17=0,0,1) -> 1 | C18: 0 | E18: =IF(F18="",0,SUM($C$4:C18)) -> 0 | F18: =IF(G7="","",IF(G17="","Maaş Dereceniz / Kademeniz","Yeni Maaş Dereceniz / Kademeniz")) ->  | I18: =IF(B21=0,0,IF(J18="","",SUM($C$4:C51)+SUM($B$4:B21))) -> 0 | J18: =IF(G15='Bilgi Girişi'!F92,"Üniverite Ödeneği Oranı %",0) -> 0
C19: 0 | E19: =IF(F19="",0,SUM($C$4:C19)) -> 0 | F19: =IF(G7="","",IF(G7=F89,"",IF(G17="","","Eski Maaş Derece /Kademeniz"))) ->  | I19: =IF(B22=0,0,IF(J19="","",SUM($C$4:C52)+SUM($B$4:B22))) -> 0 | J19: =IF(G15='Bilgi Girişi'!F92,"Eğitim Öğretim Ödeneği",0) -> 0
C20: =IF(F20="",0,1) -> 0 | E20: =IF(F20="",0,SUM($C$4:C20)) -> 0 | F20: =IF(G7="","",IF(G7=F89,"","Bu Ay Emekli Maaş D/K Terfiniz Varmı ?")) ->  | I20: =IF(B24=0,0,IF(J20="","",SUM($C$4:C53)+SUM($B$4:B24))) -> 0 | J20: =IF(G15=F92,"Akademik Teşvik Ödeneği Puanınızı Giriniz",0) -> 0
B21: =IF(J18=0,0,1) -> 0 | C21: 0 | E21: =IF(F21="",0,SUM($C$4:C21)) -> 0 | F21: =IF(G7="","",IF(G20="Evet","Yeni Emekliliğe Esas Dereceniz / Kademeniz","Emekliliğe Esas Dereceniz / Kademeniz")) ->  | I21: =IF(B25=0,0,IF(J21="","",SUM($C$4:C54)+SUM($B$4:B25))) -> 0 | J21: =IF(G15=F92,"Akademik Teşvik Oranı %",0) -> 0
B22: 0 | C22: 0 | E22: =IF(F22="",0,SUM($C$4:C22)) -> 0 | F22: =IF(G20="Evet","Eski Emekliliğe Esas Dereceniz / Kademeniz","") ->  | I22: =IF(B28=0,0,IF(J22="","",SUM($C$4:C55)+SUM($B$4:B28))) -> 0 | J22: =IF(G15='Bilgi Girişi'!F92,"Geliştirme Ödeneği Alıyormusunuz / Oranı",0) -> 0
B23: =IF(J20=0,0,1) -> 0 | C23: =IF(F23="",0,1) -> 0 | E23: =IF(F23="",0,SUM($C$4:C23)) -> 0 | F23: =IF(G7="","",IF(G7=F89,"","Bu Ay Kıdem Yılı Değişikliğiniz Varmı ?")) ->  | I23: =IF(B29=0,0,IF(J23="","",SUM($C$4:C56)+SUM($B$4:B29))) ->  | J23: =IF(G7="","","Bireysel Emeklilik Kesintiniz Varmı (BES)") -> 
B24: =IF(J20=0,0,1) -> 0 | C24: 0 | E24: =IF(F24="",0,SUM($C$4:C24)) -> 0 | F24: =IF(G7="","",IF(G23="","Kıdem Yılınız","Yeni Kıdem Yılınız")) ->  | I24: =IF(B31=0,0,IF(J24="","",SUM($C$4:C57)+SUM($B$4:B31))) ->  | J24: =IF(G7="","",IF(G15='Bilgi Girişi'!F91,"Özelleştirmeden Gelen Personel mi ? / Eski Kurum Neti TL",0)) -> 
B25: =IF(J21=0,0,1) -> 0 | C25: 0 | E25: =IF(F25="",0,SUM($C$4:C25)) -> 0 | F25: =IF(G23="Evet","Eski Kıdem Yılınız","") ->  | I25: =IF(B32=0,0,IF(J25="","",SUM($C$4:C58)+SUM($B$4:B32))) ->  | J25: =IF(G7="","","NormaL İcra Borcunuz Varmı ?") -> 
B26: =IF(J22=0,0,1) -> 0 | C26: =IF(F26="",0,1) -> 0 | E26: =IF(F26="",0,SUM($C$4:C26)) -> 0 | F26: =IF(G7="","","Daha Önceki Ek Göstergenizde Düşüş Varmı") ->  | I26: =IF(B33=0,0,IF(J26="","",SUM($C$4:C59)+SUM($B$4:B33))) ->  | J26: =IF(G7="","","Kefaletli Göreviniz Varmı ?") -> 
B27: =IF(J22=0,0,1) -> 0 | C27: =IF(F27="",0,1) -> 0 | E27: =IF(F27="",0,SUM($C$4:C27)) -> 0 | F27: =IF(G7="","","Bu Ay Ek Göstergeniz Değiştimi ?") ->  | I27: =IF(B34=0,0,IF(J27="","",SUM($C$4:C60)+SUM($B$4:B34))) ->  | J27: =IF(G8="","","Nafaka Kesintisi Varmı ?/ Varsa Miktarı ? TL") -> 
B28: =IF(J22=0,0,1) -> 0 | C28: 0 | E28: =IF(F28="",0,SUM($C$4:C28)) -> 0 | F28: =IF(G7="","",IF(G27="","Ek Gostergeniz (Ödemeye Esas)","Yeni Ek Gostergeniz (Ödemeye Esas)")) -> 
B29: =IF(J23=0,0,1) -> 1 | C29: 0 | E29: =IF(F29="",0,SUM($C$4:C29)) -> 0 | F29: =IF(G27="Evet","Yeni Emekliliğe Esas Ek Göstergeniz ",IF(G7="","","Emekliliğe Esas Ek Göstergeniz")) -> 
B30: =IF(J24=0,0,1) -> 1 | C30: =IF(F30="",0,1) -> 0 | E30: =IF(F30="",0,SUM($C$4:C30)) -> 0 | F30: =IF(G4="","",IF(G27="Evet","Eski Emekliye Esas Ek Gostergeniz ",IF(G27="","Eski Emekliye Esas Ek Gostergeniz "))) -> 
B31: =IF(J24=0,0,1) -> 1 | C31: 0 | E31: =IF(F31="",0,SUM($C$4:C31)) -> 0 | F31: =IF(G26="Evet","Yüksek Olan Eski Emekliye Esas Ek Göstergeniz (Şahıs)","") -> 
B32: =IF(J25=0,0,1) -> 1 | C32: 0 | E32: =IF(F32="",0,SUM($C$4:C32)) -> 0 | F32: =IF(G7="","","Varsa Bu Bordroda kullanılacak Raporlu Gun Sayınız") -> 
B33: =IF(J26=0,0,1) -> 1 | C33: =IF(F33="",0,1) -> 0 | E33: =IF(F33="",0,SUM($C$4:C33)) -> 0 | F33: =IF(G7="","","Özel Sigorta Tutarı TL (Hayat Sigortası)") -> 
B34: 1 | C34: 0 | E34: =IF(F34="",0,SUM($C$4:C34)) -> 0 | F34: =IF(G7="","","Varsa Geçen Aylar Vergi Matrah Toplamınız") -> 
B35: 0 | C35: 0 | E35: =IF(F35="",0,SUM($C$4:C35)) -> 0 | F35: =IF(G7="","","Sendika Üyeliğiniz Var Mı ?") -> 
B36: 0 | C36: 0 | E36: =IF(F36="",0,SUM($C$4:C36)) -> 0 | F36: =IF(G7="","","Varsa Sakatlık İndirimi Durumu ' Kendisi / Eş veya Çocuk") -> 
B37: =IF(J30=0,0,1) -> 0 | C37: =IF(F37="",0,1) -> 0 | E37: =IF(F37="",0,SUM($C$4:C37)) -> 0 | F37: =IF(F14="","","Varsa Enaz %40 Sakatlık İndiriminden Faydalanan Çocuk Sayısı") ->  | I37: =IF(G37>G14,"Dikkat Çocuk Sayısında Hatalı Giriş Var",IF(H37>H14,"Dikkat Çocuk Sayısında Hatalı Giriş Var","")) -> 
B38: =IF(J30=0,0,1) -> 0 | C38: 0 | E38: =IF(F38="",0,SUM($C$4:C38)) -> 0 | F38: =IF(G7="","","Tahhütlü İcra Borcunuz Varmı ? / Varsa Miktarını Giriniz") -> 
B39: =IF(J31=0,0,1) -> 0 | C39: =IF(F39="",0,1) -> 0 | E39: =IF(F39="",0,SUM($C$4:C39)) -> 0 | F39: =IF(G16="Doçent","Doçentler İçin / Kazanılmış Hak Aylığı D/K","") -> 
F41: Mustafa İŞBİLİR / Afyon Kocatepe Ünv./İdari Ve Mali İşler/ Şube Müdürü / Mart 2018
F42: Tadilat ve düzenleme yapılmaktadır.Karşılaştığınız Sorunlar için lütfen arayınız. 05427686825
F69: Aylar
F70: Ocak | H70: =CONCATENATE('Bilgi Girişi'!G18,'Bilgi Girişi'!H18) -> 
F71: Şubat | H71: =CONCATENATE('Bilgi Girişi'!G19,'Bilgi Girişi'!H19) -> 
F72: Mart | H72: =CONCATENATE('Bilgi Girişi'!G21,'Bilgi Girişi'!H21) -> 
F73: Nisan | H73: =CONCATENATE('Bilgi Girişi'!G22,'Bilgi Girişi'!H22) -> 
F74: Mayıs | H74: Evli Eşi Çalışıyor
F75: Haziran | H75: Evli Eşi Çalışmıyor
F76: Temmuz | H76: Evli Eşi Emekli V.İnd Yararlanıyor
F77: Ağustos | H77: Bekar
F78: Eylül
F79: Ekim
F80: Kasım | H80: Rektör
F81: Aralık | H81: 3 Yıllık Profesör
H82: Yeni Profesör
H83: Doçent
F84: Evet | H84: Genel Sekreter
F85: Hayır | H85: İç Denetçi
H86: Araştırmacı 1
H87: Araştırmacı
F88: 01/10/2008 Den Önceki Personel
F89: 01/10/2008 Den Sonraki Personel
H90: 1.Derece
F91: İdari Personel | H91: 2.Derece
F92: Akademik Personel | H92: 3.Derece
F98: 1 | G98: 100
F99: 2 | G99: 200
F100: 3 | G100: 300
F101: 4 | G101: 400
F102: 5 | G102: 500
F103: 6 | G103: 600
F104: 7 | G104: 650
F105: 8 | G105: 750
F106: 9 | G106: 850
F107: 10 | G107: 950
F108: 11 | G108: 1050
F109: 12 | G109: 1150
F110: 13 | G110: 1250
F111: 14 | G111: 1350
F112: 15 | G112: 1450
F113: 16 | G113: 1550
F114: 17 | G114: 1650
F115: 18 | G115: 1750
F116: 19 | G116: 1850
F117: 20 | G117: 1950
F118: 21 | G118: 2050
F119: 22 | G119: 2150
F120: 23 | G120: 2200
F121: 24 | G121: 2300
F122: 25 | G122: 2400
F123: 26 | G123: 2500
F124: 27 | G124: 2600
F125: 28 | G125: 2700
F126: 29 | G126: 2800
F127: 30 | G127: 2900
G128: 3000
G129: 3100
G130: 3200
G131: 3300
G132: 3400
G133: 3500
G134: 3600
G135: 3700
G136: 3800
G137: 3900
G138: 4000
G139: 4100
G140: 4200
G141: 4300
G142: 4400
G143: 4500
G144: 4600
G145: 4700
G146: 4800
G147: 4900
G148: 5000
G149: 5100
G150: 5200
G151: 5300
G152: 5400
G153: 5500
G154: 5600
G155: 5700
G156: 5800
G157: 5900
G158: 6000
G159: 6100
G160: 6200
G161: 6300
G162: 6400
G163: 6500

Sheet Bordro1
B5: Kurumu / Birimi | C5: 0
B6: Ait Olduğu Ay | C6: 0
B7: Bütçe Yılı | C7: 0
B8: PERSONEL BİLGİLERİ | D8: GELİRİN | F8: KESİNTİNİN
B9: 0 | C9: 0 | D9: ADI | E9: T U T A R I | F9: ADI | G9: T U T A R I
B10: 0 | C10: 0 | D10: 0 | E10: 0 | F10: 0 | G10: 0
B11: 0 | C11: 0 | D11: 0 | E11: 0 | F11: 0 | G11: 0
B12: 0 | C12: 0 | D12: 0 | E12: 0 | F12: 0 | G12: 0
B13: 0 | C13: 0 | D13: 0 | E13: 0 | F13: 0 | G13: 0
B14: 0 | D14: 0 | E14: 0 | F14: 0 | G14: 0
B15: 0 | C15: 0 | D15: 0 | E15: 0 | F15: 0 | G15: 0
B16: 0 | D16: 0 | E16: 0 | F16: 0 | G16: 0
B17: 0 | C17: 0 | D17: 0 | E17: 0 | F17: 0 | G17: 0
B18: 0 | D18: 0 | E18: 0 | F18: 0 | G18: 0
B19: 0 | C19: 0 | D19: 0 | E19: 0 | F19: 0 | G19: 0
B20: 0 | C20: 0 | D20: 0 | E20: 0 | F20: 0 | G20: 0
B21: 0 | C21: 0 | D21: 0 | E21: 0 | F21: 0 | G21: 0
B22: 0 | C22: 0 | D22: 0 | E22: 0 | F22: 0 | G22: 0
B23: 0 | C23: 0 | D23: 0 | E23: 0 | F23: 0 | G23: 0
B24: 0 | C24: 0 | D24: 0 | E24: 0 | F24: 0 | G24: 0
B25: 0 | C25: 0 | D25: 0 | E25: 0 | F25: 0 | G25: 0
D26: 0 | E26: 0 | F26: 0 | G26: 0
D27: 0 | E27: 0
D28: 0 | E28: 0 | F28: Gelir Toplamı | G28: 0
D29: 0 | E29: 0 | F29: Kesinti Toplamı | G29: 0
D30: 0 | E30: 0 | F30: Net Ödenen | G30: 0
D31: 0 | E31: 0
D32: 0 | E32: 0 | F32: Toplam Ödenen | G32: 0
D33: 0 | E33: 0
D34: 0 | E34: 0
B39: 0

Sheet Hesaplamalar (hidden)
U3: KESİNTİLER
E4: Temel Maaşlar | Q4: Emekli Keseneği Hesaplamaya İlşikin Bölüm | U4: Kesintinin Adı | V4: Tutarı | Z4: Emekli Matrahları | AA4: Tutarı | AB4: Em Ek Büyükse
E5: =IF('Bilgi Girişi'!G7="","","Yeni Aylık Göstergesi") ->  | F5: =IF(ISERROR(VLOOKUP('Bilgi Girişi'!H70,'Derece Kademe'!$N$17:$O$287,2,FALSE)),0,VLOOKUP('Bilgi Girişi'!H70,'Derece Kademe'!$N$17:$O$287,2,FALSE)) -> 0 | I5: Zam ve Tazminatlar | M5: Ödenekler | Q5: =IF('Bilgi Girişi'!G7='Bilgi Girişi'!F88,"Em.Kes.Katkı Oranı % 'Her İki Ek Göst Eşit Olanlar'",0) -> 0 | R5: =IF('Bilgi Girişi'!G28>6400,215,IF(Q5=0,0,+T5)) -> 0 | T5: =LARGE('Değerler Tablosu'!I45:I52,1) -> 55 | U5: =IF('Bilgi Girişi'!G7="","","Bu Ay Vergi Matrahınız") ->  | V5: =IF(F5>0,SUM((F6+F18+F13+F15+M30+N6)-(V16+Z24+Z28+V21+V17+V22+F37)),SUM((F6+F18+F13+F15+J8+N6)-(V16+Z24+Z28+V21+V17+V22+F37))) -> 0 | Z5: =IF('Bilgi Girişi'!G7='Bilgi Girişi'!F88,"Heriki Ek Göstregesi ve Emk Mük ile Kıdem Aynı Olanlar için Em.Kes.Karşılığı % 20 (Devlet K.Matrahı)",0) -> 0 | AA5: =IF(AND('Bilgi Girişi'!G7='Bilgi Girişi'!F88,'Bilgi Girişi'!L2="Evet"),0,IF('Bilgi Girişi'!G7='Bilgi Girişi'!F89,0,(F10+F13+F16+R6+F19))) -> 0 | AB5: =IF(AND('Bilgi Girişi'!G7='Bilgi Girişi'!F88,'Bilgi Girişi'!L2="Evet"),0,IF('Bilgi Girişi'!G7='Bilgi Girişi'!F89,0,(F10+F13+F16+R9+F21))) -> 0
E6: =IF('Bilgi Girişi'!G7="","","Aylık Tutar (Ödemeye Esas)") ->  | F6: =ROUND((IF(ISERROR(((F5*'Değerler Tablosu'!E6)/'Bilgi Girişi'!L3)*'Bilgi Girişi'!L4),0,(F5*'Değerler Tablosu'!E6)/'Bilgi Girişi'!L3)*'Bilgi Girişi'!L4),2) -> 0 | I6: =IF('Bilgi Girişi'!G7="","",IF('Bilgi Girişi'!J7=0,0,"Ödemeye Esas Özel Hizmet Tazminatı Tutarı")) ->  | J6: =ROUND(((((9500*'Değerler Tablosu'!E6)/100)*'Bilgi Girişi'!K7)/'Bilgi Girişi'!L3)*'Bilgi Girişi'!L4,2) -> 0 | M6: =IF('Bilgi Girişi'!K17="Evet","İdari Görev Tutarı",0) -> 0 | N6: =ROUND((((F5+'Bilgi Girişi'!G28)*'Değerler Tablosu'!E6)*'Bilgi Girişi'!L17)/100,2) -> 0 | Q6: =IF('Bilgi Girişi'!G7='Bilgi Girişi'!F88,"Em.Kes.Katkı Tutarı 'Her İki Göstergesi Eşit Olanlar'",0) -> 0 | R6: =IF(C7=C8,0,ROUND(IF(Q6=0,0,('Değerler Tablosu'!E6*9500)*R5)/100,2)) -> 0 | U6: =IF('Bilgi Girişi'!G7="","","Sakatlık İndirimi Tutarı TL") ->  | V6: =+Z28 -> 0 | Z6: =IF('Bilgi Girişi'!G7='Bilgi Girişi'!F88,"Heriki Ek Göstregesi ve Emk Mük ile Kıdem Aynı Olanlar için Em.Kes.Karşılığı % 20 (Devlet)",0) -> 0 | AA6: =IF('Bilgi Girişi'!G7='Bilgi Girişi'!F89,0,ROUND(IF(AA5=0,0,(AA5*0.2)),2)) -> 0
C7: =CONCATENATE('Bilgi Girişi'!G7,'Bilgi Girişi'!L2) ->  | E7: =IF('Bilgi Girişi'!G7="","","Eski Aylık Göstergesi") ->  | F7: =IF(ISERROR(VLOOKUP('Bilgi Girişi'!H71,'Derece Kademe'!$N$17:$O$287,2,FALSE)),0,VLOOKUP('Bilgi Girişi'!H71,'Derece Kademe'!$N$17:$O$287,2,FALSE)) -> 0 | I7: =IF('Bilgi Girişi'!G7="","",IF('Bilgi Girişi'!J8=0,0,"Emkliye Esas Özel Hizmet Tazminatı Tutarı")) ->  | J7: =ROUND(((((9500*'Değerler Tablosu'!E6)/100)*'Bilgi Girişi'!K7)/30)*'Bilgi Girişi'!L4,2) -> 0 | M7: =IF('Bilgi Girişi'!J18=0,0,"Üniversite Ödeneği Tutarı") -> 0 | N7: =IF(M7=0,0,ROUND(IF('Bilgi Girişi'!K18="",0,(((9500*'Değerler Tablosu'!E6)*'Bilgi Girişi'!K18)/100)/'Bilgi Girişi'!L3)*'Bilgi Girişi'!L4,2)) -> 0 | Q7: =IF(R7=0,0,"Emekliye Esas Ek Gösterge Tutarı 'Ödemeye Esas Ek Göstergesi Aynı Olanlar'") -> 0 | R7: =IF('Bilgi Girişi'!G7='Bilgi Girişi'!F89,0,IF(C7=C8,0,IF('Bilgi Girişi'!G28='Bilgi Girişi'!G29,('Bilgi Girişi'!G30*'Değerler Tablosu'!E6),0))) -> 0 | U7: =IF('Bilgi Girişi'!G7="","","Toplam Vergi Matrahınız") ->  | V7: ='Bilgi Girişi'!G34+V5 -> 0 | Z7: =IF('Bilgi Girişi'!G7="","",IF('Bilgi Girişi'!G7='Bilgi Girişi'!F89,0,"Gen.Sag.Sig.Pir.( ) Devlet K.Matrahı) % 12")) ->  | AA7: =+AA5 -> 0
C8: 01/10/2008 Den Önceki PersonelEvet | E8: =IF('Bilgi Girişi'!G7="","","Yeni Emekliye Esas Aylık Göstergesi") ->  | F8: =IF(C7=C8,0,IF(ISERROR(VLOOKUP('Bilgi Girişi'!H72,'Derece Kademe'!N17:O290,2,FALSE)),0,VLOOKUP('Bilgi Girişi'!H72,'Derece Kademe'!N17:O290,2,FALSE))) -> 0 | I8: =IF('Bilgi Girişi'!G7="","",IF('Bilgi Girişi'!J11=0,0,"Ödenecek Yan Odemeler Toplamı")) ->  | J8: =ROUND((('Bilgi Girişi'!K11*'Değerler Tablosu'!E7)/'Bilgi Girişi'!L3)*'Bilgi Girişi'!L4,2) -> 0 | M8: =IF('Bilgi Girişi'!J18=0,0,"Eğitim Öğretim Ödeneği Tutarı") -> 0 | N8: =IF(M8=0,0,ROUND(IF('Bilgi Girişi'!K19="Evet",(((9500*'Değerler Tablosu'!E6)/12)/'Bilgi Girişi'!L3)*'Bilgi Girişi'!L4,0),2)) -> 0 | Q8: =IF('Bilgi Girişi'!G7='Bilgi Girişi'!F88,"Em.Kes.Katkı Oranı % 'Emekli Ek Göst Farklı Olanlar'",0) -> 0 | R8: =IF('Bilgi Girişi'!G26="",0,IF(Q8=0,0,IF(AND('Bilgi Girişi'!G31>=6400,'Bilgi Girişi'!G31<=7600),195,+T8))) -> 0 | T8: =LARGE('Değerler Tablosu'!K45:K52,1) -> 0 | U8: =IF('Bilgi Girişi'!G7="","","Geçerli Vergi Oranınız %") ->  | V8: =IF(V7=0,0,+Vergi!C21) -> 0 | Z8: =IF('Bilgi Girişi'!G7="","",IF('Bilgi Girişi'!G7='Bilgi Girişi'!F89,0,"Gen.Sag.Sig.Pir.(Ek Göst Aynı İse ) Devlet K.Matrahı) % 12")) ->  | AA8: =IF('Bilgi Girişi'!G7='Bilgi Girişi'!F89,0,IF(C7=C8,0,IF(Z8=0,0,ROUND(IF(R7=0,(F20+F13+F17+R9),(F20+F13+F17+R6)),2)))) -> 0
C9: =IF(C8=C8,1,0) -> 1 | E9: =IF('Bilgi Girişi'!G7="","","Eski Emekliye Esas Aylık Göstergesi") ->  | F9: =IF('Bilgi Girişi'!G20="",0,IF(C8=C9,0,IF(ISERROR(VLOOKUP('Bilgi Girişi'!H73,'Derece Kademe'!N17:O290,2,FALSE)),0,VLOOKUP('Bilgi Girişi'!H73,'Derece Kademe'!N17:O290,2,FALSE)))) -> 0 | I9: =IF('Bilgi Girişi'!G7="","",IF(J9<=0,0,"Makam Tazminatı Puanı")) ->  | J9: =IF(AND('Bilgi Girişi'!G16="Doçent",'Bilgi Girişi'!G39>1),0,IF(ISERROR(VLOOKUP('Bilgi Girişi'!G16,'Değerler Tablosu'!I8:J16,2,FALSE)),0,VLOOKUP('Bilgi Girişi'!G16,'Değerler Tablosu'!I8:J16,2,FALSE))) -> 0 | M9: =IF('Bilgi Girişi'!J20>0,"Ödemeye Easas Akademik Teşvik Ödeneği Tutarı",0) -> 0 | N9: =ROUND(((('Değerler Tablosu'!E6*9500)*'Bilgi Girişi'!K21/100)*('Bilgi Girişi'!K20)/100),2) -> 0 | Q9: =IF(R9=0,0,IF('Bilgi Girişi'!G7='Bilgi Girişi'!F88,"Em.Kes.Katkı Tutarı 'Emekli Ek Göstergesi Farklı Olanlar'",0)) -> 0 | R9: =IF(C7=C8,0,ROUND((('Değerler Tablosu'!E6*9500)*R8)/100,2)) -> 0 | U9: =IF('Bilgi Girişi'!G7="","","Gelir Vergisi") ->  | V9: =ROUND(IF(V5>0,(V5*V8)/100,0)-V31,2) -> 0 | Z9: =IF('Bilgi Girişi'!G7="","",IF('Bilgi Girişi'!G7='Bilgi Girişi'!F89,0,"Gen.Sag.Sig.Pir.(Devlet) % 12")) ->  | AA9: =ROUND(IF(AB5>AA5,AB5*0.12,AA5*0.12),2) -> 0
E10: Emekli Kes İçin Kullanılacak Emekli Müktesebi Tutarı | F10: =ROUND(IF(F9<=0,F8*'Değerler Tablosu'!E6,Hesaplamalar!F9*'Değerler Tablosu'!E6),2) -> 0
E11: =IF('Bilgi Girişi'!G7="","","Emekliye Esas Aylık Göstergesi Farkı ( % 100 Artış İçin)") ->  | F11: =IF('Bilgi Girişi'!G20="",0,IF(F8=F9,F8,F8-F9)) -> 0 | I11: =IF('Bilgi Girişi'!G7="","",IF(J11<=0,0,"Makam Tazminatı Tutarı")) ->  | J11: =ROUND(IF(J9>0,J9*'Değerler Tablosu'!E6,0),2) -> 0 | M11: =IF('Bilgi Girişi'!J22=0,0,"Geliştirme Ödeneği Tutarı") -> 0 | N11: =IF(M11=0,0,ROUND(IF(AND('Bilgi Girişi'!K22="Evet",F7=0),(((F5+'Bilgi Girişi'!G28)*'Değerler Tablosu'!E6)*'Bilgi Girişi'!L22)/100,(((F5+'Bilgi Girişi'!G28)*'Değerler Tablosu'!E6)*'Bilgi Girişi'!L22)/100),2)) -> 0
E12: =IF('Bilgi Girişi'!G8="",""," Emekliye Esas Aylık Tutar Farkı (%100 Artış İçin) ") ->  | F12: =ROUND((IF((ISERROR((F11*'Değerler Tablosu'!E7)/'Bilgi Girişi'!L3)*'Bilgi Girişi'!L4),0,(F11*'Değerler Tablosu'!E6)/30)*'Bilgi Girişi'!L4),2) -> 0
E13: =IF('Bilgi Girişi'!G7="","","Ödemeye ve Emekli Kes.Esas Taban Aylık Tutarı") ->  | F13: =IF('Bilgi Girişi'!G18="",0,ROUND((('Değerler Tablosu'!E8*'Değerler Tablosu'!E9)/'Bilgi Girişi'!L3)*'Bilgi Girişi'!L4,2)) -> 0 | I13: =IF('Bilgi Girişi'!G7="","",IF(J13<=0,0,IF('Bilgi Girişi'!G16='Bilgi Girişi'!H80,"Temsil Tazminatı Puanı","Görev Tazminatı Puanı"))) ->  | J13: =IF(ISERROR(VLOOKUP(J9,'Değerler Tablosu'!I22:L28,4,FALSE)),0,VLOOKUP(J9,'Değerler Tablosu'!I22:L28,4,FALSE)) -> 0 | M13: =IF('Bilgi Girişi'!G35="",0,IF('Bilgi Girişi'!G4='Bilgi Girişi'!F70,"Ödemeye Esas Top.Söz.İkram.",IF('Bilgi Girişi'!G4='Bilgi Girişi'!F73,"Ödemeye Esas Top.Söz.İkram.",IF('Bilgi Girişi'!G4='Bilgi Girişi'!F76,"Ödemeye Esas Top.Söz.İkram.",IF('Bilgi Girişi'!G4='Bilgi Girişi'!F79,"Ödemeye Easas Top.Söz.İkram.",0))))) -> 0 | N13: =IF('Bilgi Girişi'!K12="Evet",0,IF(C7=C8,0,ROUND(IF('Bilgi Girişi'!G35="",0,IF('Bilgi Girişi'!G4='Bilgi Girişi'!F70,('Değerler Tablosu'!E14*'Değerler Tablosu'!E6),IF('Bilgi Girişi'!G4='Bilgi Girişi'!F73,('Değerler Tablosu'!E14*'Değerler Tablosu'!E6),IF('Bilgi Girişi'!G4='Bilgi Girişi'!F76,('Değerler Tablosu'!E14*'Değerler Tablosu'!E6),IF('Bilgi Girişi'!G4='Bilgi Girişi'!F79,('Değerler Tablosu'!E14*'Değerler Tablosu'!E6),0))))),2))) -> 0 | U13: =+E38 ->  | V13: =IF(AND('Bilgi Girişi'!G7='Bilgi Girişi'!F88,'Bilgi Girişi'!L2="Evet"),0,IF('Bilgi Girişi'!G7='Bilgi Girişi'!F89,0,IF(F18>F19,(F12+F17+F20),(F12+F17+F20)))) -> 0 | Z13: 7
I14: =IF('Bilgi Girişi'!G7="","",IF(J14<=0,0,IF('Bilgi Girişi'!G16='Bilgi Girişi'!H80,"Temsil Tazminatı Puanı Ödemeye Esas","GörevTazminatı Puanı ÖdemeyeEsas"))) ->  | J14: =IF(AND('Bilgi Girişi'!G15='Bilgi Girişi'!F92,'Bilgi Girişi'!K16>0),(J13*0.8),IF(AND('Bilgi Girişi'!G15='Bilgi Girişi'!F91,'Bilgi Girişi'!K16>0),(J13*0.8),IF(AND('Bilgi Girişi'!G15='Bilgi Girişi'!F92,'Bilgi Girişi'!K15="Evet"),+J13,IF('Bilgi Girişi'!K15="Evet",(J13*0.8),0)))) -> 0 | Q14: =IF(R14=0,0,"Emekliye Esas Ek Gostergesi Farklı ise Emekli Kes. Tabi Dev.Kat. Ek Gösterge Tutarı") -> 0 | R14: =ROUND(IF('Bilgi Girişi'!G29<>'Bilgi Girişi'!G31,('Bilgi Girişi'!G31*'Değerler Tablosu'!E6),0),2) -> 0 | U14: =IF('Bilgi Girişi'!G7="","","Damga Vergisi") ->  | V14: =IF(J27>0,ROUND((F6+F18+F13+F15+M30+M29+J15+J24+N13+J11+J18+J22+N7+N8+N11+N6+N9+J21)*Vergi!D11,2),ROUND((F6+F18+F13+F15+J8+J6+J15+J24+N13+J11+J18+J22+N7+N8+N11+N6+N9+J21)*Vergi!D11,2)) -> 0
E15: =IF('Bilgi Girişi'!G7="","","Ödemeye Esas Kıdem Aylık") ->  | F15: =ROUND(((('Bilgi Girişi'!G24*20)*'Değerler Tablosu'!E6)/'Bilgi Girişi'!L3)*'Bilgi Girişi'!L4,2) -> 0 | I15: =IF('Bilgi Girişi'!G7="","",IF(J15<=0,0,IF('Bilgi Girişi'!G16='Bilgi Girişi'!H80,"Temsil TazminatıTutarı","GörevTazminatıTutarı"))) ->  | J15: =ROUND(('Değerler Tablosu'!E6*J14),2) -> 0 | Q15: =IF(R15=0,0,"Emekliye Esas Ek Gostergesi Farklı ise Emekli Kes.Tabi Şahıs Ek Gösterge Tutarı") -> 0 | R15: =ROUND(IF('Bilgi Girişi'!G31<>'Bilgi Girişi'!G29,('Bilgi Girişi'!G31*'Değerler Tablosu'!E6),0),2) -> 0 | U15: =IF('Bilgi Girişi'!G7=0,0,IF('Bilgi Girişi'!G7='Bilgi Girişi'!F89,0,"Emekli Keseneği (Devlet) Katkısı % 20")) -> 0 | V15: =+AA6 -> 0
E16: =IF('Bilgi Girişi'!G7="","",IF('Bilgi Girişi'!G29="","","Eski Kıdem Aylık")) ->  | F16: =IF('Bilgi Girişi'!G23="",+F15,ROUND(((('Bilgi Girişi'!G25*20)*'Değerler Tablosu'!E6)/'Bilgi Girişi'!L3)*'Bilgi Girişi'!L4,2)) -> 0 | I16: =IF('Bilgi Girişi'!G7="","",IF('Bilgi Girişi'!K24="evet","Ödemeye Esas Özelleştirme Tazminatı Tutarı",0)) ->  | J16: =IF(I16=0,0,IF('Bilgi Girişi'!L24=0,0,'Bilgi Girişi'!L24-V34)) -> 0 | U16: =IF('Bilgi Girişi'!G7=0,0,IF('Bilgi Girişi'!G7='Bilgi Girişi'!F89,0,"Emekli Keseneği (Kişi) %16")) -> 0 | V16: =IF(R8=0,(AA5*0.16),IF(AND(R8>=R5,AB5>AA5,(AA5*0.16)+V19),((AB5*0.16)+V19))) -> 0
E17: =IF('Bilgi Girişi'!G7="","","Kıdem Aylık Farkı") ->  | F17: =IF(F16=0,0,IF(F15=F16,0,(F15-F16))) -> 0 | I17: =IF('Bilgi Girişi'!G7="","",IF('Bilgi Girişi'!G15='Bilgi Girişi'!F92,0,IF('Bilgi Girişi'!K12="Evet","İdari Pers.Dil Tazminatı Puanı",0))) ->  | J17: =IF(ISERROR(IF(I17=0,0,VLOOKUP('Bilgi Girişi'!G16,'Değerler Tablosu'!N7:P15,3,FALSE))),0,IF(I17=0,0,VLOOKUP('Bilgi Girişi'!G16,'Değerler Tablosu'!N7:P15,3,FALSE))) -> 0 | U17: =IF(U29=0,0,"Mal.Yaş.Ölüm Sig % 9 (Şahıs)") -> 0 | V17: =IF(U17=0,0,ROUND(((R14+F14+F15+J7+N7+F18+F10+F13)*'Değerler Tablosu'!$O$37)/100,2)) -> 0 | Z17: Hayat Sigortası Matrahı
B18: =LARGE(C18:C20,1) -> 0 | C18: =ROUND(IF(F18=0,0,F18/'Değerler Tablosu'!E6),0) -> 0 | D18: =SMALL(C18:C20,1) -> 0 | E18: =IF('Bilgi Girişi'!G7="","","Ek Gosterge Ödemeye Esas") ->  | F18: =ROUND((('Bilgi Girişi'!G28*'Değerler Tablosu'!E6)/'Bilgi Girişi'!L3)*'Bilgi Girişi'!L4,2) -> 0 | I18: =IF('Bilgi Girişi'!G7="","",IF(I17=0,0,"Ödemeye Esas Dil Tazminatı Tutarı")) ->  | J18: =ROUND((J17*'Değerler Tablosu'!E6),2) -> 0 | U18: =IF('Bilgi Girişi'!G7=0,0,IF('Bilgi Girişi'!G7='Bilgi Girişi'!F89,0,"Artış %100 (Devlet + Kişi)")) -> 0 | V18: =0*1 -> 0 | Z18: =F6+F13+F15+F18+J6+J8+J24+N7+N9+N8+N11+J22+F25 -> 0
C19: =ROUND(IF(F19=0,0,F19/'Değerler Tablosu'!E6),0) -> 0 | E19: =IF('Bilgi Girişi'!G7="","","Ek Gosterge EmEkliliğe Esas (Devlet)") ->  | F19: =ROUND(IF('Bilgi Girişi'!G29>G29,('Bilgi Girişi'!G30*'Değerler Tablosu'!E6),('Bilgi Girişi'!G29*'Değerler Tablosu'!E6)),2) -> 0 | U19: Eski Em Ek Göst Büyük İse Fark % 20 Devlet | V19: =ROUND(IF(AB5>AA5,(AB5-AA5)*0.2,0),2) -> 0 | Z19: Hayat Sigortası Düşülebilecek Maksimum Tutar %15
E20: =IF('Bilgi Girişi'!G7="","","Ek Gosterge Emekliliğe Esas Fark") ->  | F20: =ROUND(IF(C19>C18,0,IF(F19=0,0,IF(F18=F19,0,(F18-F19)))),2) -> 0 | I20: =IF('Bilgi Girişi'!G15='Bilgi Girişi'!F91,0,IF('Bilgi Girişi'!K13="Evet","Akademik Pers.Dil Tazminatı Puanı",0)) -> 0 | J20: =IF(ISERROR(IF(I20=0,0,VLOOKUP('Bilgi Girişi'!L13,'Değerler Tablosu'!O7:P17,2,FALSE))),0,IF(I20=0,0,VLOOKUP('Bilgi Girişi'!L13,'Değerler Tablosu'!O7:P17,2,FALSE))) -> 0 | U20: =IF('Bilgi Girişi'!G7=0,0,IF('Bilgi Girişi'!G7='Bilgi Girişi'!F89,0,"Gen.Sag.Sig.Pir.(% 12 Devlet)")) -> 0 | V20: =IF(R8=0,(AA5*0.12),IF(AND(R8>=R5,AB5>AA5,(AA8*0.12)),((AB5*0.12)))) -> 0 | Z20: =ROUND((Z18*0.15),2) -> 0
B21: =+C21 -> 0 | C21: =ROUND(IF(F21=0,0,F21/'Değerler Tablosu'!E6),0) -> 0 | E21: =IF('Bilgi Girişi'!G26="","","Eski Yüksek Ek Gosterge Emekliliğe Şahıs") ->  | F21: =ROUND((('Bilgi Girişi'!G31*'Değerler Tablosu'!E6)/'Bilgi Girişi'!L3)*'Bilgi Girişi'!L4,2) -> 0 | I21: =IF(I20=0,0,"Ödemeye Esas Akademik Dil Tazminatı Tutarı") -> 0 | J21: =ROUND(((J20*'Değerler Tablosu'!E6)/'Bilgi Girişi'!L3)*'Bilgi Girişi'!L4,2) -> 0 | U21: =IF(U30=0,0,"Gen.Sag.Sig.Pir.(Kişi) %5") -> 0 | V21: =IF(U21=0,0,ROUND(((R14+F14+F15+J7+N7+F18+F10+F13)*'Değerler Tablosu'!$O$38)/100,2)) -> 0 | Z21: Verdiği Tutar / Girilen Tutar
I22: =IF('Bilgi Girişi'!J14=0,0,"Yüksek Öğrenim Tazminatı Tutarı") -> 0 | J22: =IF(I22=0,0,ROUND(IF('Bilgi Girişi'!K14="",0,((((9500*'Değerler Tablosu'!E6)*'Bilgi Girişi'!K14)/'Bilgi Girişi'!L3)*'Bilgi Girişi'!L4)/100),2)) -> 0 | U22: =IF('Bilgi Girişi'!G35="",0,"Sendika Aidatı Tutarı") -> 0 | V22: =IF('Bilgi Girişi'!L2="Evet",0,IF('Bilgi Girişi'!G35="",0,ROUND((F6+F18+F13+F15+J8+J6+J15+J24+N13+J11+J18+J22+N7+N8+N11+J21+N9)*Vergi!D12,2))) -> 0 | Z22: =+'Bilgi Girişi'!G33 -> 0
E23: Sosyal Haklar | U23: =IF('Bilgi Girişi'!G38="Evet","Taahütlü İcra Kesintisi",0) -> 0 | V23: =IF('Bilgi Girişi'!H38<=0,0,+'Bilgi Girişi'!H38) -> 0 | Z23: Düşülecek Tutar
E24: =IF('Bilgi Girişi'!G12="Evli Eşi Çalışmıyor","Ödemeye Esas Aile Yardımı Tutarı ",0) -> 0 | F24: =IF('Bilgi Girişi'!L2="Evet",0,ROUND(IF('Bilgi Girişi'!G12='Bilgi Girişi'!H75,('Değerler Tablosu'!E6*'Değerler Tablosu'!E10),0),2)) -> 0 | I24: =IF('Bilgi Girişi'!K16=0,0,"Ödemeye Esas Ek Ödeme Tutarı (666 KHK)") -> 0 | J24: =IF('Bilgi Girişi'!K15="Evet",0,ROUND(IF('Bilgi Girişi'!K16<=0,0,(((9500*'Değerler Tablosu'!E6)*'Bilgi Girişi'!K16)/'Bilgi Girişi'!L3)*'Bilgi Girişi'!L4)/100,2)) -> 0 | U24: =IF('Bilgi Girişi'!K25="Evet","Normail İcra Borcu",0) -> 0 | V24: =ROUND(IF(U24=0,0,SUM(F6+F18+F13+F15+J8+J6+J24+J11+J15+J18+J22+N7+N8+N11)*0.25),2) -> 0 | Z24: =IF(Z22>Z20,Z20,Z22) -> 0
E25: =IF('Bilgi Girişi'!G14+'Bilgi Girişi'!H14<=0,0,"Ödemeye Esas Çocuk Yardımı Tutarı ") -> 0 | F25: =IF('Bilgi Girişi'!L2="Evet",0,(((('Bilgi Girişi'!G14*'Değerler Tablosu'!E11)+('Bilgi Girişi'!H14*'Değerler Tablosu'!E12))*'Değerler Tablosu'!E6)))+(((('Bilgi Girişi'!G37*'Değerler Tablosu'!E11)+('Bilgi Girişi'!H37*'Değerler Tablosu'!E12))*'Değerler Tablosu'!E6))*0.5 -> 0 | U25: =IF('Bilgi Girişi'!K26="Evet","Normal Kefalet Kesintisi",0) -> 0 | V25: =ROUND(IF(U25=0,0,(100*'Değerler Tablosu'!E6)),2) -> 0 | Z25: Sakatlık İndirimi İçin
U26: =IF(V26=0,0,"Bireysel emeklilik (BES) Tutarı") -> 0 | V26: =ROUNDDOWN(IF('Bilgi Girişi'!K23="Evet",(AA5*0.03),0),0) -> 0 | Z26: =IF(ISERROR(VLOOKUP('Bilgi Girişi'!G36,'Değerler Tablosu'!I31:J33,2,FALSE)),0,VLOOKUP('Bilgi Girişi'!G36,'Değerler Tablosu'!I31:J33,2,FALSE)) -> 0 | AA26: 1 Kişi
I27: Rapor Günü | J27: =+'Bilgi Girişi'!G32 -> 0 | U27: =IF(V27=0,0,"Bireysel emeklilik (BES) Tutarı") -> 0 | V27: =ROUND(IF('Bilgi Girişi'!K23="Evet",(((V29/11)*100)*0.03),0),0) -> 0 | Z27: =IF(ISERROR(VLOOKUP('Bilgi Girişi'!H36,'Değerler Tablosu'!I31:J33,2,FALSE)),0,VLOOKUP('Bilgi Girişi'!H36,'Değerler Tablosu'!I31:J33,2,FALSE)) -> 0 | AA27: 2.Kişi
E28: Sosyal Güvenlik Primleri / Emekli Kesenekleri | I28: Rapor için Hesaplacak Tutarlar | M28: Rapordan Dolayı Ödenecek Tutarlar | U28: =+'Bilgi Girişi'!J27 ->  | V28: =+'Bilgi Girişi'!K27 -> 0 | Z28: =SUM(Z26:Z27) -> 0 | AA28: Toplama Tutar
E29: Malullül Yaşlılık ve Ölüm Siğortası | I29: Ö.H.Taz. | J29: =+J6 -> 0 | M29: =J29-(ROUND(IF(J27>0,((($J$29/'Bilgi Girişi'!L3)*Hesaplamalar!$J$27)*$J$31))/100,2)) -> 0 | U29: =IF('Bilgi Girişi'!G7='Bilgi Girişi'!F89,"Mal.Yaş.Ölüm Sig % 11 (Devlet)",0) -> 0 | V29: =IF(U29=0,0,ROUND(((R14+F14+F15+J7+N7+F18+F10+F13)*'Değerler Tablosu'!$N$37)/100,2)) -> 0
E30: =IF('Bilgi Girişi'!G7="","","11% İşverenı Hissesi") ->  | F30: =+V29 -> 0 | I30: Yan Ödeme | J30: =+J8 -> 0 | M30: =J30-(ROUND(IF(J27>0,((($J$30/'Bilgi Girişi'!L4)*Hesaplamalar!$J$27)*$J$31))/100,2)) -> 0 | U30: =IF('Bilgi Girişi'!G7='Bilgi Girişi'!F89,"Gen Sağ.Sig % 7,5 (Devlet)",0) -> 0 | V30: =IF(U30=0,0,ROUND(((R14+F14+F15+J7+N7+F18+F10+F13)*'Değerler Tablosu'!$N$38)/100,2)) -> 0
E31: =IF('Bilgi Girişi'!G7="","","EMEKLI KESN.%20") ->  | F31: =+V15 -> 0 | I31: Rapor İnd.Oranı % | J31: 25 | U31: =IF('Bilgi Girişi'!G7="","","Asgari Geçim İndirimi Tutarınız") ->  | V31: =+'Asg Geç İnd'!Y4 -> 0
U32: =IF('Bilgi Girişi'!G7="","","Gelirler Toplamınız") ->  | V32: =F6+F18+F13+F15+J8+J6+AA6+AA9+F24+F25+J24+N13+J11+J15+J18+J22+N7+N8+N11+V29+V30+N6+J21+N9 -> 0
E33: Genel Sağlık Siğortası Pirimi | U33: =IF('Bilgi Girişi'!G7="","","Kesinti Toplamınız") ->  | V33: =V9+V14+V15+V16+V18+V20+V21+V22+V17+V23+V24+V25+V26+V27+V28 -> 0
E34: =IF('Bilgi Girişi'!G7="","","7,5 % İşveren Hissesi") ->  | F34: =+V30 -> 0 | U34: =IF('Bilgi Girişi'!G7="","","Net Ödenecek Maaşş Tutarınız") ->  | V34: =V32-V33 -> 0
E35: =IF('Bilgi Girişi'!G7="","","12 % İşveren Hissesi") ->  | F35: =+V20 -> 0 | U35: =IF('Bilgi Girişi'!K24="Evet","Net Ödenen Maşınız Özelleştirme Tazminatı Dahil",0) -> 0 | V35: =IF('Bilgi Girişi'!K24="Evet",J16+V34,0) -> 0
E37: =IF('Bilgi Girişi'!G7="","","EMEKLI KESN.%100 ŞAHIS") ->  | F37: =+F38 -> 0
E38: =IF('Bilgi Girişi'!G7="","","EMEKLI KESN.%100 Devlet") ->  | F38: =+V13 -> 0

Sheet Tablo
J2: 5510 Sayılı Kanuna Göre 4/c kapsamında 01/10/2008 den Önce Memuriyete Başlayanlar | R2: 5510 Sayılı Kanuna Göre 4/c kapsamında 01/10/2008 den Sonra Memuriyete Başlayanlar | T2: 5510 Sayılı Kanuna Göre 4/c kapsamında 01/10/2008 den Önce Memuriyete Başlayanlar
B3: Harcama Gurubu | D3: Harcama Kalemi | F3: Damga Vergisi | H3: Gelir Vergisi | J3: Emekli Keseneği | L3: Tasarruf Kesintisi | N3: Döner Sermaye | P3: Vergi İndirimi | R3: Malüllük Yaşlılık ve Ölüm & Genel Sağlık Siğortası Primi | T3: "01/07/2008 den itibaren 3 yıl Sonra " 18/12/2009 tarih ve 27436 sayılıR.G Yayımlanan KAMU PERSONELİNİN GENEL SAĞLIK SİGORTASI KAPSAMINA ALINMASI HAKKINDA TEBLİĞ 5.Maddesi Genel Sağlık Siğortası Primi % 12 Tamamı İşverenden
B6: Temel Maaşlar (Eski 110) | D6: MAAŞ | F6: Tabi | H6: Tabi | J6: ----- | L6: Tabi | N6: Tabi | P6: ------ | R6: ------ | T6: -----
D7: EMEKLİ MAAŞI | F7: ------ | H7: ---- | J7: Tabi | L7: ----- | N7: ----- | P7: ------ | R7: Tabi | T7: Tabi
D8: TABAN MAAŞ | F8: Tabi | H8: Tabi | J8: Tabi | L8: Tabi | N8: ------ | P8: ------ | R8: Tabi | T8: Tabi
D9: KIDEM | F9: Tabi | H9: Tabi | J9: Tabi | L9: Tabi | N9: ------ | P9: ------ | R9: Tabi | T9: Tabi
D10: EK GOSTERGE | F10: Tabi | H10: Tabi | J10: ------ | L10: Tabi | N10: Tabi | P10: ------ | R10: ------ | T10: ------
D11: Emekli Ek Göstersi | F11: ------ | H11: ------ | J11: Tabi | L11: ------ | N11: ------ | P11: ------ | R11: Tabi | T11: Tabi
D12: İKİNCİ GÖREV AYLIĞI | F12: Tabi | H12: Tabi | J12: ------ | L12: ------ | N12: ------ | P12: ------ | R12: ------ | T12: ------
P14: ------
B15: Sos Güv.Primi | D15: Malullül Yaşlılık ve Ölüm Siğortası
D16: 9 % Sigortalı Hissesi | F16: ------ | H16: ------ | J16: ------ | L16: ------ | N16: ------ | P16: Tabi | R16: ------ | T16: ------
D17: 11% İşverenı Hissesi | F17: ------ | H17: ------ | J17: ------ | L17: ------ | N17: ------ | P17: ------ | R17: ------ | T17: ------
D19: Genel Sağlık Siğortası Pirimi | T19: ------
D20: 5 % Sigortalı Hissesi | F20: ------ | H20: ------ | J20: ------ | L20: ------ | N20: ------ | P20: Tabi | R20: ------ | T20: ------
D21: 7,5 % İşverenı Hissesi | F21: ------ | H21: ------ | J21: ------ | L21: ------ | N21: ------ | P21: ------ | R21: ------ | T21: ------
D22: 12 % İşverenı Hissesi | F22: ------ | H22: ------ | J22: ------ | L22: ------ | N22: ------ | P22: ------ | R22: ------ | T22: 01/10/2008 den Önceki Memurlar İçin, Emekli Keseneğine Tabi Gelirler Üzerinden Tamamı Devletten % 100 Artış Varsa Artıştan Önceki Matrahr Üzerinden
T23: ------
T24: ------
B25: Emekli Sandığına (Eski 110) | D25: EMEKLI KESN.%20 | F25: ------ | H25: ------ | J25: ------ | L25: ------ | N25: ------ | P25: ------ | R25: ------ | T25: ------
D26: EMEKLI KESN.%25 | F26: ------ | H26: ------ | J26: ------ | L26: ------ | N26: ------ | P26: Tabi | R26: ------ | T26: ------
D27: EMEKLİ KESN.%100 | F27: ------ | H27: ------ | J27: ------ | L27: ------ | N27: ------ | P27: Tabi | R27: ------ | T27: ------
B31: Sosyal Haklar (Eski 140) | D31: COCUK YARDIMI | F31: ------ | H31: ------ | J31: ------ | L31: ------ | N31: ------ | P31: ------ | R31: ------ | T31: ------
D32: AİLE YARDIMI | F32: ------ | H32: ------ | J32: ------ | L32: ------ | N32: ------ | P32: ------ | R32: ------ | T32: ------
D33: TAS.KES.DEV.KATS.%3 Kaldırıldı | F33: ------ | H33: ------ | J33: ------ | L33: ------ | N33: ------ | P33: ------ | R33: ------ | T33: ------
D34: DOĞUM YARDIMI | F34: ------ | H34: ------ | J34: ------ | L34: ------ | N34: ------ | P34: ------ | R34: ------ | T34: ------
B37: Ek Çalışma Karşılıkları (150) | D37: EK ÇALIŞMA KARŞL. | F37: Tabi | H37: Tabi | J37: ------ | L37: ------ | N37: ------ | P37: ------ | R37: ------ | T37: ------
D38: EK ÇALIŞMA KARŞL.(2.ÖĞRT) | F38: Tabi | H38: Tabi | J38: ------ | L38: ------ | N38: ------ | P38: ------ | R38: ------ | T38: ------
D39: EK ÇALIŞMA KARŞL.(Nöbet) | F39: Tabi | H39: ------ | J39: ------ | L39: ------ | N39: ------ | P39: ------ | R39: ------ | T39: ------
B42: Zamlar Ve Tazminatlar (Eski 160) | D42: İŞ RİSKİ(YAN ÖDEME) | F42: Tabi | H42: Tabi | J42: ------ | L42: Tabi | N42: Tabi | P42: ------ | R42: ------ | T42: ------
D43: ÖZEL HİZMET TAZMİ. | F43: Tabi | H43: ------ | J43: ------ | L43: Tabi | N43: Tabi | P43: ------ | R43: Tabi | T43: ------
D44: ARAZİ TAZMİNATI | F44: Tabi | H44: ------ | J44: ------ | L44: ------ | N44: ------ | P44: ------ | R44: ------ | T44: ------
D45: Yapı İşl.Tek.Dai.Bşk % 30 Ek Taz. | F45: Tabi | H45: ------ | J45: ------ | L45: ------ | N45: Tabi | P45: ------ | R45: ------ | T45: ------
D46: MAKAM TAZMİNATI | F46: Tabi | H46: ------ | J46: ------ | L46: Tabi | N46: ------ | P46: ------ | R46: Tabi | T46: ------
D47: TEMSİL TAZMİNATI | F47: Tabi | H47: ------ | J47: ------ | L47: Tabi | N47: ------ | P47: ------ | R47: Tabi | T47: ------
D48: GÖREV TAZMİNATI | F48: Tabi | H48: ------ | J48: ------ | L48: ------ | N48: ------ | P48: ------ | R48: Tabi | T48: ------
D49: NÖBET TAZMİNATI | F49: Tabi | H49: Tabi | J49: ------ | L49: ------ | N49: ------ | P49: ------ | R49: ------ | T49: ------
D50: SAGLIK BAKAN.FARKI | F50: ------ | H50: ------ | J50: ------ | L50: ------ | N50: Tabi | P50: ------ | R50: ------ | T50: ------
D51: ÖZELLEŞTİRMEDEN DOGAN FARK | F51: ------ | H51: ------ | J51: ------ | L51: ------ | N51: ------ | P51: ------ | R51: ------ | T51: ------
D52: YABANCI DİL TAZMİ. | F52: Tabi | H52: ------ | J52: ------ | L52: ------ | N52: Tabi | P52: ------ | R52: ------ | T52: ------
D53: YÜKSEK ÖĞRETİM TAZMİNATI | F53: Tabi | H53: ------ | J53: ------ | L53: ------ | N53: ------ | P53: ------ | R53: ------ | T53: ------
D54: LOJMAN TAZMİNATI 31/03/2006 tarih ve 26125 say.Res.Gaz.Yayım.5473 say.Kan.11.Mad.ileKaldırıld | F54: Tabi | H54: ------ | J54: ------ | L54: ------ | N54: ------ | P54: ------ | R54: ------ | T54: ------
D55: Ek Ödeme 31/3/2006 Tarih ve 26125 Say.R.G Yayımlanan 5473 Say.Kanunla | F55: Tabi | H55: ------ | J55: ------ | L55: ------ | N55: ------ | P55: ------ | R55: ------ | T55: ------
B58: Ödenekler (Eski 170) | D58: İDARİ GÖREV ÖDENEĞİ | E58: Tabi | H58: Tabi | J58: ------ | L58: Tabi | N58: Tabi | P58: ------ | R58: ------ | T58: ------
D59: GELİŞTİRME ÖDENEĞİ | E59: Tabi | H59: ------ | J59: ------ | L59: Tabi | N59: ------ | P59: ------ | R59: ------ | T59: ------
D60: ÜNİVERSİTE ÖDENEĞİ | E60: Tabi | H60: ------ | J60: ------ | L60: Tabi | N60: Tabi | P60: ------ | R60: Tabi | T60: ------
D61: AKADEMİK TEŞVİK ÖDENEĞİ | F61: Tabi | H61: ------ | J61: ------ | L61: Tabi | N61: Tabi | P61: ------ | R61: Tabi | T61: ------
D62: EĞİTİM ÖĞRT.ÖDENEĞİ | E62: Tabi | H62: ------ | J62: ------ | L62: Tabi | N62: Tabi | P62: ------ | R62: ------ | T62: ------
D63: Sendika Ödeneği “31/3/2006 Tarih ve 26125 Say.R.G Yayımlanan 5473 Say.Kanunla eklenen (ek madde 4) 4688 | E63: Tabi | H63: 25.02.2011 Tarih ve 27857 sayılı Mükerrer r.g yayımlanan 6111 sayılı kanunun 118.maddesi ile Ocak Nisan,Temmuz ve Ekim aylarında peşin 45,00 TL Toplu Sözleşme Primi Getirildi | N63: ------ | P63: Tabi (kendisinden Kesilen Kısmı Kadar) | R63: ------ | T63: ------
D64: sayılı Kamu Görevlileri Sendikaları Kanunu Hükümleri Uyarınca Kamu Görevlileri Sendikalarına Üye Olanlara 15/01/2006 dan itibaren 5.00.-YTL Tutarında ödenir
D65: Not: Sendika Yardımı 10/11/2009 tarih ve 27402 sayılı R.G Yayımlanan 2006/94 Esas 2009/92 Karar 25.06/2009 tarihli Anayasa Mah.Kararı İle İptal edildi

Sheet Ödeme Emri
A2: Muhasebe Birimi Kodu | C2: ??
A3: Muhasebe Birimi Adı | C3: =+'Bilgi Girişi'!G3 -> 0 | N3: Bütçe Yılı | Q3: =+'Bilgi Girişi'!H4 -> 2018 | T3: İ l g i l i n i n | U3: Adı, Soyadı/Ünvanı
A4: Kurum-Birim Kodu | C4: 1 | D4: 2 | E4: 3 | F4: 4 | G4: 5 | H4: Yevmiyenin | N4: Tarihi | U4: T.C./ Vergi Kimlik No
C5: 38 | D5: 44 | E5: 0 | F5: 0 | G5: 908 | N5: No.su | Q5: 0 | U5: Banka Şube Adı
A6: Kurum Adı | C6: =+C3 -> 0 | U6: Banka Hesap Numarası
A7: Birim Adı | C7: =+'Bilgi Girişi'!I4 -> Birim | U7: Bağlı Olduğu Vergi Dairesi
A8: Hesap No | C8: Kurumsal Kod | H8: Fonksiyonel Kod | L8: Finans | N8: Ekonomik / | S8: T u t a r | X8: Hesap / Ayrıntı Adı
L9: Kodu | N9: Y. Hesap Kodu | S9: B o r ç | U9: A l a c a k
C10: 1 | D10: 2 | E10: 3 | F10: 4 | G10: 5 | H10: 1 | I10: 2 | J10: 3 | K10: 4 | L10: 1 | N10: 1 | O10: 2 | P10: 3 | Q10: 4 | R10: 5 | S10: =IF(txtYil>2008,"TL","YTL") -> TL | U10: =IF(txtYil>2008,"TL","YTL") -> TL
A12: 630 | C12: =+$C$5 -> 38 | D12: =+$D$5 -> 44 | E12: =+$E$5 -> 0 | F12: =+$F$5 -> 0 | G12: =+$G$5 -> 908 | L12: 2 | N12: 01 | O12: 01 | P12: 01 | Q12: 1 | S12: =Bordro!E10+Bordro!E12+Bordro!E13+Bordro!E11 -> 0 | X12: Temel Maaşlar
A13: 630 | C13: 38 | D13: 44 | E13: 0 | F13: 0 | G13: 908 | L13: 2 | N13: 01 | O13: 01 | P13: 2 | Q13: 1 | S13: =Bordro!E14+Bordro!E23+Bordro!E18+Bordro!E25+Bordro!E33+Bordro!E24+Bordro!E27+Bordro!E26 -> 0 | X13: Zamlar ve Tazminatlar
A14: 630 | C14: 38 | D14: 44 | E14: 0 | F14: 0 | G14: 908 | L14: 2 | N14: 01 | O14: 01 | P14: 4 | Q14: 1 | S14: =Bordro!E22+Bordro!E21 -> 0 | X14: Sosyal Haklar
A15: 630 | C15: 38 | D15: 44 | E15: 0 | F15: 0 | G15: 908 | L15: 2 | N15: 01 | O15: 01 | P15: 4 | Q15: 1 | S15: =Bordro!E30+Bordro!E28+Bordro!E29+Bordro!E32+Bordro!E31+Bordro!E34 -> 0 | X15: Ödenekler
A16: 630 | C16: 38 | D16: 44 | E16: 0 | F16: 0 | G16: 908 | L16: 2 | N16: 02 | O16: 1 | P16: 06 | Q16: 01 | S16: =Bordro!E16+Bordro!E15 -> 0 | X16: Sosyal Güvenlik Primi Ödemeleri (%20 Devlet Katkısı)
A17: 630 | C17: 38 | D17: 44 | E17: 0 | F17: 0 | G17: 908 | L17: 2 | N17: 02 | O17: 1 | P17: 06 | Q17: 02 | S17: =Bordro!E17+Bordro!E19 -> 0 | X17: Sağlık Primi Ödemeleri (Gen Sağ Sig % 12 Devlet)
A18: 360 | N18: 01 | O18: 01 | P18: 02 | Q18: 00 | S18: =Bordro!C25 -> 0 | X18: Diğer Ücretler ile Ücret sayılan Ödemelerden Yapılan Tevkifa(Asg.Geç.İnd.)
A19: 360 | N19: 01 | O19: 01 | P19: 02 | Q19: 00 | U19: =Bordro!G10+Bordro!C25 -> 0 | X19: Diğer Ücretler ile Ücret sayılan Ödemelerden Yapılan Tevkifa
A20: 360 | N20: 03 | O20: 01 | P20: 00 | Q20: 00 | U20: =+Bordro!G11 -> 0 | X20: Ücret ve Ücret Sayılan Ödemelere Ait Damga Vergisi
A21: 361 | N21: 10 | O21: 01 | P21: 01 | Q21: 1 | U21: =+Bordro!G19 -> 0 | X21: Malüllük,Yaşlılık ve Emeklilik Primi (% 9 Şahıs Kesintisi)
A22: 361 | N22: 10 | O22: 01 | P22: 1 | Q22: 2 | U22: =+Bordro!G25 -> 0 | X22: Genel Sağlık Sigortası Primi (% 5 Şahıs Kesintisi)
A23: 361 | N23: 10 | O23: 02 | P23: 2 | Q23: 1 | U23: =+Bordro!G14 -> 0 | X23: Malüllük,Yaşlılık ve Emeklilik Primi (% 11 Devlet Katkısı)
A24: 361 | N24: 1 | O24: 2 | P24: 1 | Q24: 0 | U24: =+Bordro!G12 -> 0 | X24: Sosyal Güvenlik Primi Ödemeleri (%20 Devlet Katkısı)
A25: 361 | N25: 1 | O25: 1 | P25: 1 | Q25: 0 | U25: =+Bordro!G13 -> 0 | X25: Sosyal Güvenlik Primi Ödemeleri (%16 Şahıs Kesintisi)
A26: 361 | N26: 1 | O26: 2 | P26: 4 | Q26: 0 | U26: =IF(Bordro!G16=0,+Bordro!G15,Bordro!G16) -> 0 | X26: Genel Sağlık Sigortası Primi (% 12 Devlet Katkısı)
A27: 362 | N27: 2 | O27: 6 | P27: 2 | Q27: 0 | U27: =+Bordro!G23 -> 0 | X27: Kefalet Aidatı Aylık Kesintisi
A28: 333 | N28: 3 | O28: 3 | P28: 0 | Q28: 0 | U28: =+Bordro!G21 -> 0 | X28: Tahhütlü İcra Kesintisi
A29: 333 | N29: 3 | O29: 1 | P29: 0 | Q29: 0 | U29: =+Bordro!G22 -> 0 | X29: Normal İcra Kesintisi
A30: 333 | N30: 10 | O30: 03 | U30: =+Bordro!G20 -> 0 | X30: …….Sendikası (Sendika Aidatı)
A31: 361 | N31: 98 | O31: 9 | P31: 2 | U31: =+Bordro!G24 -> 0 | X31: BES (Vakıfbank Emeklilik A.Ş)Diğer
A32: 103 | C32: =+$C$5 -> 38 | D32: =+$D$5 -> 44 | E32: =+$E$5 -> 0 | F32: =+$F$5 -> 0 | G32: =+$G$5 -> 908 | N32: 02 | O32: 00 | P32: 00 | Q32: 00 | U32: =+Bordro!G30+Bordro!E33 -> 0 | X32: Verilen Gönderme Emirleri Hesabı
A33: TOPLAM | S33: =SUM(S12:T32) -> 0 | U33: =SUM(U12:W32) -> 0 | X33: TOPLAM
A34: Bordrodaki TOPLAM Hakediş (Bütçe Gideri Tahakkuk TOPLAMI) | S34: =SUM(S12:T17) -> 0
A41: =+'Bilgi Girişi'!F43 -> 0

Sheet Değerler Tablosu
I3: MAKAM TAZMİNATI CETVELİ (Ek: 20/3/1997-KHK-570/7 md.)
C4: Cari Dönem
C5: Yıl | E5: 2018 | I5: MAKAM TAZMİNATI | O5: Akademik | R5: Y.DİL TAZMİNATI | X5: Üniversite Ödeneği
C6: Maaş Katsayısı | E6: 0.10855 | I6: Mak.Taz.Göst. X Maaş Katsayısı | O6: Y.DİL TAZMİNATI | R6: 27/3/2006 tar.ve 29299 veya 23299 sy.R.G. | X6: Madde 12 – (Değişik : 20/3/1997 - KHK - 570/4 md.)
C7: Yan Ödeme Katsayısı | E7: 0.034424 | I7: (Yük.Öğrt.Personel Kan.Ek Mad.2(Ek:20/3/1997-KHK-570/7 Md.) | O7: A | P7: 900 | R7: A1 İçin | S7: 100 -96 Puan | X7: ÜNİVERSİTE ÖDENEĞİ (Yüksek Öğrenim Personel Kanunu 12.md. Ve (23/2/95 tarih 547 sayılı KHK ile)
C8: Taban Aylık Katsayısı | E8: 1.699121 | I8: Rektör | J8: 7000 | O8: B | P8: 600 | R8: A İçin | S8: 90 -95 Puan | X8: 657 sayılı Devlet Memurları Kanununa tabi en yüksek Devlet memuru brüt aylık (ek gösterge dahil) tutarının;
C9: Taban Aylık Çarpanı | E9: 1000 | I9: 3 Yıllık Profesör | J9: 6000 | O9: C | P9: 300 | R9: B İçin | S9: 80 -89 Puan | Y9: %
C10: Aile Yardımı Puanı | E10: 2134 | I10: (Bu kadroda üç yılını tamamlamış olmak şartıyla) | O10: D | P10: 2100 | R10: C İçin | S10: 70 -79 Puan | X10: 1) Profesörlerden Rektör, Rektör Yardımcısı, Dekan, | Y10: 245
C11: Çocuk Yardımı Puanı 72 Aydan Küçük | E11: 500 | I11: Yeni Profesör | J11: 4500 | O11: E | P11: 1200 | X11: Dekan Yardımcısı, Yüksekokul Müdürü olanlar ile
C12: Çocuk Yardımı Puanı 72 Aydan Büyük | E12: 250 | I12: Doçent | J12: 2000 | O12: A1 | P12: 1200 | X12: Profesör kadrosunda üç yılını tamamlamış bulunanlara
C13: Asgari Ücret (Günlük) | E13: 67.65 | I13: (Kaz.Hak.aylığı 1.Derece Olmak Kaydıyla) | N13: Araştırmacı 1 | O13: C | P13: 250
C14: Sendika Topl.Sö.z Prim Puanı | E14: 750 | I14: Genel Sekreter | J14: 2000 | N14: İç Denetçi | O14: B | P14: 600 | X14: 2) Diğer Profesör kadrosunda bulunanlara
I15: Araştırmacı 1 | J15: 3500 | X15: (yeni ve 3 Yıldan Az Olanlara ) | Y15: 215
I16: İç Denetçi | J16: 2000
X18: 3) Doçent kadrosunda bulunanlara | Y18: 175
I19: GÖREV TAZMİNATI | R19: Akademik Teşvik Oranları %
R20: Yeni Profesör | S20: 100 | X20: 4) Yardımcı Doçent kadrosunda bulunanlara (Doktor Öğrt. Grv.) | Y20: 165 | Z20: Eski
I21: Makam Tazminatı Gösterge Rakamları | K21: İlave | L21: Toplam | R21: 3 Yıllık Profesör | S21: 100 | Y21: 175 | Z21: Yeni
I22: 6000 | J22: Olanlar için | K22: 9000 | L22: =I22+K22 -> 15000 | R22: Prof.Dr. | S22: 100 | X22: 5) Diğer Öğretim elemanlarından;
I23: 5500 | J23: Olanlar için | K23: 7000 | L23: 12500 | R23: Doç.Dr. | S23: 90 | X23: (Öğrt.Grv-Uzman-Okt-ğt.Öğr.Plan) | Z23: Eski
I24: 4500 | J24: Olanlar için | K24: 7000 | L24: 11500 | R24: Yrd.Doç.Dr. | S24: 80 | X24: (Öğetim Görevlisi ve Araş Görevlileri) | Z24: Yeni
I25: 4000 | J25: Olanlar için | K25: 6000 | L25: 10000 | R25: Arş.Grv. | S25: 70 | X25: a) Birinci dereceden aylık alanlara | Y25: 130
I26: 2000 | J26: Olanlar için | K26: 6000 | L26: 8000 | R26: Öğretim.Grv. | S26: 70 | X26: b) İkinci dereceden aylık alanlara | Y26: 117
I27: 3500 | J27: Olanlar için | K27: 6000 | L27: 9500 | R27: Okutman | S27: 70 | X27: c) Üçüncü dereceden aylık alanlara | Y27: 110
I28: 7000 | J28: Olanlar için | L28: 17000 | M28: Temsil Tazminatı | R28: Uzman | S28: 70 | X28: d) Dördüncü ve beşinci dereceden aylık alanlara | Y28: 104
R29: Çevirici | S29: 70 | X29: e) Diğer derecelerden aylık alanlara (6.ve 7.Dereceler) | Y29: 98
I30: CARİ DÖNEM | J30: Sakatlık İndirimi TL | R30: Rektör | S30: 100 | X30: Her ay üniversite ödeneği olarak ödenir.
I31: 1.Derece | J31: 1000 | X31: Bu ödenek kısmi statüde görev yapanlara ödenmez.
I32: 2.Derece | J32: 530
I33: 3.Derece | J33: 240
I36: Ek Göstergesi | J36: % | N36: Devlet Hissesi % | O36: Şahıs Hissesi %
I37: 0-2200 Arası | J37: 55 | M37: Malullül Yaşlılık ve Ölüm Siğortası | N37: 11 | O37: 9
I38: 2200 Dahil 3600 Hariç | J38: 85 | M38: Genel Sağlık Siğortası Pirimi | N38: 7.5 | O38: 5
I39: 3600 Dahil 4800 Hariç | J39: 145
I40: 4800 Dahil 6400 Hariç | J40: 165
I41: 6400 Dahil 7600 Hariç | J41: 195
I42: 7600 Dahil 8400 Hariç | J42: 215
I44: Em.Kes.Katkı Oranı / Ek Gsösretegi Eşit Olanlar | K44: Em.Kes.Katkı Oranı / Ek Gsösretegi Farklı Olanlar
I45: =IF(Hesaplamalar!D18<2200,55,0) -> 55
I46: =IF(I47>0,0,IF(AND(Hesaplamalar!D18>=3600,Hesaplamalar!D18<=4800),145,0)) -> 0 | K46: =IF(I47>0,0,IF(AND(Hesaplamalar!B21>=2200,Hesaplamalar!B21<=3600),85,0)) -> 0
I47: =IF(I48>0,0,IF(AND(Hesaplamalar!D18>=2200,Hesaplamalar!D18<=3600),85,0)) -> 0 | K47: =IF(I48>0,0,IF(AND(Hesaplamalar!B21>=2200,Hesaplamalar!B21<=3600),85,0)) -> 0
I48: =IF(I49>0,0,IF(AND(Hesaplamalar!D18>=3600,Hesaplamalar!D18<=4800),145,0)) -> 0 | K48: =IF(I49>0,0,IF(AND(Hesaplamalar!B21>=3600,Hesaplamalar!B21<=4800),145,0)) -> 0
I49: =IF(I50>0,0,IF(AND(Hesaplamalar!D18>=4800,Hesaplamalar!D18<=6400),165,0)) -> 0 | K49: =IF(I50>0,0,IF(AND(Hesaplamalar!B21>=4800,Hesaplamalar!B21<=6400),165,0)) -> 0
I50: =IF(I51>0,0,IF(AND(Hesaplamalar!D18>=6400,Hesaplamalar!D18<=7600),195,0)) -> 0 | K50: =IF(I51>0,0,IF(AND(Hesaplamalar!B21>=6400,Hesaplamalar!B21<=7600),195,0)) -> 0
D81: =+'Bilgi Girişi'!F43 -> 0

Sheet Asg Geç İnd
A2: =COUNTIF(A4:A33,">0") -> 1
A3: Sıra No | B3: Adı Soyadı | C3: Medeni Hali | E3: Eşi Çalışıyormu | F3: Çocuk Sayısı | G3: İlgili Döneme Ait Maaşındaki Vergi Matrahı | H3: Sakatlık İndirimi (Varsa) | I3: GELİR VERGİSİNE TABİ GELİRİ | J3: İlgili Dönemde Kendisinden Kesilen Gelir Vergisi tutarı | K3: 16 Yaşından Büyükler İçin Asgari Ücret (Günlük) | L3: 16 Yaşından Büyükler İçin Asgari Ücret (Yıllık) | M3: Asgari Geçim İndirimine Esas Tutar | N3: Asgari Geçim İndiriminin Yıllık Tutarı | O3: Hesaplanan Yıllık Tutarın 1/12 si | P3: İlgili Dönemde Mükellefin (Çalışanın) Ödeyeceği Vergi Tutarı | Q3: Çalışan Personel İçin | R3: Eşi İçin | S3: 1.Çocuk | T3: 2.Çocuk | U3: 3.Çocuk | V3: 4.Çocuk | W3: 5.Çocuk | X3: TOPLAM İnd.Oranı | Y3: Ödenecek İndirim Tutarı
A4: 1 | B4: =+'Bilgi Girişi'!G11 -> 0 | C4: =+'Bilgi Girişi'!G12 -> 0 | D4: =MID(C4,10,10) ->  | E4: =IF(A4<=0,"",IF(D4="Çalışıyor","Evet",IF(C4="Dul","",IF(C4="Bekar","",IF(D4="Çalışmıyor","Hayır",IF(C4="Evli Eşi Emekli V.İnd Yararlanıyor","Hayır","")))))) ->  | F4: =+'Bilgi Girişi'!G13 -> 0 | G4: =+Hesaplamalar!V5 -> 0 | I4: =G4-H4 -> 0 | J4: =ROUND((I4*0.15),2) -> 0 | K4: =IF(A4<=0,0,'Değerler Tablosu'!E13) -> 67.65 | L4: =(K4*30)*12 -> 24354 | M4: =ROUND((L4*X4)/100,2) -> 12177 | N4: =ROUND((M4*0.15),2) -> 1826.55 | O4: =ROUND((N4/12),2) -> 152.21 | P4: =IF(J4-O4<0,0,J4-O4) -> 0 | Q4: =IF(A4<=0,0,50) -> 50 | R4: =IF(E4="Hayır",10,0) -> 0 | S4: =IF(F4=0,0,IF(F4=1,7.5,IF(F4>1,7.5))) -> 0 | T4: =IF(F4=0,0,IF(F4>1,7.5,)) -> 0 | U4: =IF(F4>2,10,0) -> 0 | V4: =IF(F4>3,5,0) -> 0 | W4: =IF(F4>4,5,0) -> 0 | X4: =SUM(Q4:W4) -> 50 | Y4: =IF('Bilgi Girişi'!L2="Evet",0,IF(J4<O4,+J4,+O4)) -> 0
B16: =+'Bilgi Girişi'!F43 -> 0
B18: =IF('Değerler Tablosu'!J30=C123,"Sendika Adı",IF('Değerler Tablosu'!J30=C126,"Sendika Adı",IF('Değerler Tablosu'!J30=C129,"Sendika Adı",IF('Değerler Tablosu'!J30=C132,"Sendika Adı",0)))) -> 0

Sheet Vergi
C1: =CONCATENATE(C2," ","Yılı İçin") -> 2018 Yılı İçin
B2: Yıl | C2: 2018
A3: 1 | B3: 1.Dilim | C3: 14800 | E3: =CONCATENATE(C3," ","TL'ye kadar"," ","(0","-",C3,".-TL)") -> 14800 TL'ye kadar (0-14800.-TL) | G3: 0.15 | K3: =ROUND(C3*0.15,2) -> 2220
A4: 2 | B4: 2.Dilim | C4: 34000 | E4: =CONCATENATE(C4,"-TL'nin"," ",C3,"-TL'si için"," ",K3,"-TL, fazlası","( ",C4,"-",C3,"-TL)") -> 34000-TL'nin 14800-TL'si için 2220-TL, fazlası( 34000-14800-TL) | G4: 0.2 | K4: =ROUND((C4-C3)*0.2,2) -> 3840 | L4: =K4+K3 -> 6060
A5: 3 | B5: 3:dilim | C5: 120000 | E5: =CONCATENATE(C5,"-TL'nin"," ",C4," ","- TL'si için"," ",L4,"-TL"," ","fazlası","(",C5,"-",C4,"-TL)") -> 120000-TL'nin 34000 - TL'si için 6060-TL fazlası(120000-34000-TL) | G5: 0.27
E6: =CONCATENATE(C5," ","-TL'den fazlası") -> 120000 -TL'den fazlası | G6: 0.35
C11: D.V.Oranı | D11: 0.00759
C12: Sendka Aidat Oranı | D12: 0.005
C17: =IF(C35<=Vergi!C3,Vergi!G3,IF(Hesaplamalar!V7>Vergi!C3,Vergi!G4,IF(Hesaplamalar!V7>Vergi!C4,Vergi!G5)))*100 -> 15
C19: 15 | D19: 16 | E19: 17 | F19: 18
C20: Uygulanacak Oran | D20: Vergi Oranı1 | E20: Vergi Oranı2 | F20: Vergi Oranı2 | G20: Vergi Oranı3 | H20: Vergi Oranı3
C21: =+D32 -> 15 | D21: =IF(Hesaplamalar!V7<=C3,G3,IF(Hesaplamalar!V7>C3,G4))*100 -> 15 | E21: =IF(Hesaplamalar!V7>C4,"Evet",0) -> 0 | F21: =IF(E21="Evet",G5,0)*100 -> 0 | G21: =IF(Hesaplamalar!V7>C5,"Malesef",0) -> 0 | H21: =IF(G21="Malesef",G6,0)*100 -> 0
D27: =+C19 -> 15
D28: =+D21 -> 15
D29: =+F21 -> 0
D30: =+H21 -> 0
C32: En Büyük Oran | D32: =MAX(D27:D30) -> 15
B42: =+'Bilgi Girişi'!F43 -> 0

Sheet Son 4 Yıl
C2: Son 4 Yıllın Katsayıları
E3: 2015 | I3: 2016 | M3: 2017 | Q3: 2018
E4: 01/01/2015 30/06/2015 | G4: 01/07/2015 31/12/2015 | I4: 01/01/2016 30/06/2016 | K4: 01/07/2016 31/12/2016 | M4: 01/01/2017 30/06/2017 | O4: 01/06/2017 31/12/2017 | Q4: 01/01/2018 30/06/2018 | S4: 01/07/2018 31/12/2018
C6: KATSAYI | E6: 0.079308 | G6: 0.083084 | I6: =G6+(G6*6.9)/100 -> 0.088816796 | K6: 0.093259 | M6: 0.096058 | O6: 0.102706 | Q6: 0.10855 | S6: 0
C8: YAN ÖDEME | E8: 0.025149 | G8: 0.026347 | I8: =G8+(G8*6.9)/100 -> 0.028164943 | K8: 0.029574 | M8: 0.030462 | O8: 0.03257 | Q8: 0.034424 | S8: 0
C10: TABAN AYLIK | E10: 1.24144 | G10: 1.30054 | I10: =G10+(G10*6.9)/100 -> 1.39027726 | K10: 1.4598 | M10: 1.503595 | O10: 1.607645 | Q10: 1.699121 | S10: 0
C14: Son 4 Yıllın Aile Yardımı Puanları
E15: 2015 | I15: 2016 | M15: 2017 | Q15: 2018
E16: 01/01/2015 30/06/2015 | G16: 01/07/2015 31/12/2015 | I16: 01/01/2016 30/06/2016 | K16: 01/07/2016 31/12/2016 | M16: 01/01/2017 30/06/2017 | O16: 01/06/2017 31/12/2017 | Q16: 01/01/2018 30/06/2018 | S16: 01/07/2018 31/12/2018
E18: PUAN | G18: PUAN | I18: PUAN | K18: PUAN | M18: PUAN | O18: PUAN | Q18: PUAN | S18: PUAN
C19: AİLE Yardımı Puanı | E19: 2134 | G19: 2134 | I19: 2134 | K19: 2134 | M19: 2134 | O19: 2134 | Q19: 2134 | S19: 0
C22: Son 4 Yıllın Toplu Sözleşme Pirimi
E23: 2015 | I23: 2016 | M23: 2017 | Q23: 2018
E24: 01/01/2015 30/06/2015 | G24: 01/07/2015 31/12/2015 | I24: 01/01/2016 30/06/2016 | K24: 01/07/2016 31/12/2016 | M24: 01/01/2017 30/06/2017 | O24: 01/06/2017 31/12/2017 | Q24: 01/01/2018 30/06/2018 | S24: 01/07/2018 31/12/2018
E26: TL | G26: PUAN | I26: PUAN | K26: PUAN | M26: PUAN | O26: PUAN | Q26: PUAN | S26: PUAN
C27: Sendika Ödeneği | E27: 60 | G27: 750 | I27: 750 | K27: 750 | M27: 750 | O27: 750 | Q27: 750 | S27: 0
C31: Son 4 Yıllın Sakatlık İndirimleri
E32: 2015 | I32: 2016 | M32: 2017 | Q32: 2018
E34: TL | I34: TL | M34: TL | Q34: TL
C35: 1.DERECE | E35: 880 | I35: 900 | M35: 900 | Q35: 1000
C37: 2.DERECE | E37: 440 | I37: 460 | M37: 470 | Q37: 530
C39: 3.DERECE | E39: 200 | I39: 210 | M39: 210 | Q39: 240
C42: Son 3 Yıllın Vergi Dilimleri | M42: Son 3 Yıl Asgari Ücret
C43: YIL | E43: 2018 | K43: % | M43: YIL | O43: 2018 | Q43: 67.65 | R43: TL
C44: 1.Dilim | D44: 14800 | F44: =CONCATENATE(D44," ","TL'ye kadar"," ","(0","-",D44,".-TL)") -> 14800 TL'ye kadar (0-14800.-TL) | K44: 15 | M44: YIL | O44: 2017 | Q44: 59.25 | R44: TL
C45: 2.Dilim | D45: 34000 | F45: =CONCATENATE(D45,"-TL'nin"," ",D44,"-TL'si için"," ",L44,"-TL, fazlası","( ",D45,"-",D44,"-TL)") -> 34000-TL'nin 14800-TL'si için -TL, fazlası( 34000-14800-TL) | K45: 20 | M45: YIL | O45: 2016 | Q45: 54.9 | R45: TL
C46: 3:dilim | D46: 120000 | F46: =CONCATENATE(D46,"-TL'nin"," ",D45," ","- TL'si için"," ",M45,"-TL"," ","fazlası","(",D46,"-",D45,"-TL)") -> 120000-TL'nin 34000 - TL'si için YIL-TL fazlası(120000-34000-TL) | K46: 27
F47: =CONCATENATE(D46," ","-TL'den fazlası") -> 120000 -TL'den fazlası | K47: 35
C50: YIL | E50: 2017 | K50: %
C51: 1.Dilim | D51: 13000 | F51: =CONCATENATE(D51," ","TL'ye kadar"," ","(0","-",D51,".-TL)") -> 13000 TL'ye kadar (0-13000.-TL) | K51: 15
C52: 2.Dilim | D52: 30000 | F52: =CONCATENATE(D52,"-TL'nin"," ",D51,"-TL'si için"," ",L51,"-TL, fazlası","( ",D52,"-",D51,"-TL)") -> 30000-TL'nin 13000-TL'si için -TL, fazlası( 30000-13000-TL) | K52: 20
C53: 3:dilim | D53: 110000 | F53: =CONCATENATE(D53,"-TL'nin"," ",D52," ","- TL'si için"," ",M52,"-TL"," ","fazlası","(",D53,"-",D52,"-TL)") -> 110000-TL'nin 30000 - TL'si için -TL fazlası(110000-30000-TL) | K53: 27
F54: =CONCATENATE(D53," ","-TL'den fazlası") -> 110000 -TL'den fazlası | K54: 35
C59: YIL | E59: 2016 | K59: %
C60: 1.Dilim | D60: 12600 | F60: =CONCATENATE(D60," ","TL'ye kadar"," ","(0","-",D60,".-TL)") -> 12600 TL'ye kadar (0-12600.-TL) | K60: 15
C61: 2.Dilim | D61: 30000 | F61: =CONCATENATE(D61,"-TL'nin"," ",D60,"-TL'si için"," ",L60,"-TL, fazlası","( ",D61,"-",D60,"-TL)") -> 30000-TL'nin 12600-TL'si için -TL, fazlası( 30000-12600-TL) | K61: 20
C62: 3:dilim | D62: 110000 | F62: =CONCATENATE(D62,"-TL'nin"," ",D61," ","- TL'si için"," ",M61,"-TL"," ","fazlası","(",D62,"-",D61,"-TL)") -> 110000-TL'nin 30000 - TL'si için -TL fazlası(110000-30000-TL) | K62: 27
F63: =CONCATENATE(D62," ","-TL'den fazlası") -> 110000 -TL'den fazlası | K63: 35
C67: YIL | E67: 2015 | K67: %
C68: 1.Dilim | D68: 12000 | F68: =CONCATENATE(D68," ","TL'ye kadar"," ","(0","-",D68,".-TL)") -> 12000 TL'ye kadar (0-12000.-TL) | K68: 15
C69: 2.Dilim | D69: 29000 | F69: =CONCATENATE(D69,"-TL'nin"," ",D68,"-TL'si için"," ",L68,"-TL, fazlası","( ",D69,"-",D68,"-TL)") -> 29000-TL'nin 12000-TL'si için -TL, fazlası( 29000-12000-TL) | K69: 20
C70: 3:dilim | D70: 66000 | F70: =CONCATENATE(D70,"-TL'nin"," ",D69," ","- TL'si için"," ",M69,"-TL"," ","fazlası","(",D70,"-",D69,"-TL)") -> 66000-TL'nin 29000 - TL'si için -TL fazlası(66000-29000-TL) | K70: 27
F71: =CONCATENATE(D70," ","-TL'den fazlası") -> 66000 -TL'den fazlası | K71: 35

Sheet Derece Kademe
D2: 1 Numaralı Cetvel
E3: Aylık GÖSTERGE TABLOSU (1) | S3: 7600 (Dahil) - 8400 (Hariç) Arasında Olanlar ... Den 215 'e
C4: DERECE | D4: 1 | E4: 2 | F4: 3 | G4: 4 | H4: 5 | I4: 6 | J4: 7 | K4: 8 | L4: 9 | S4: 6400 (Dahil) - 7600 (Hariç) Arasında Olanlar 180 Den 195 'e
C5: 1 | D5: 1320 | E5: 1380 | F5: 1440 | G5: 1500 | H5: -- | I5: -- | J5: -- | K5: -- | L5: -- | S5: 4800 (Dahil) - 6400 (Hariç) Arasında Olanlar 150 Den 165 'e
C6: 2 | D6: 1155 | E6: 1210 | F6: 1265 | G6: 1320 | H6: 1380 | I6: 1440 | J6: -- | K6: -- | L6: -- | S6: 3600 (Dahil) - 4800 (Hariç) Arasında Olanlar 130 Den 145 'e
C7: 3 | D7: 1020 | E7: 1065 | F7: 1110 | G7: 1155 | H7: 1210 | I7: 1265 | J7: 1320 | K7: 1380 | L7: -- | S7: 2200 (Dahil) -36000 (Hariç) Arasında Olanlar 70 Den 85 'e
C8: 4 | D8: 915 | E8: 950 | F8: 985 | G8: 1020 | H8: 1065 | I8: 1110 | J8: 1155 | K8: 1210 | L8: 1265 | S8: Digerleri 40 Den 55 'e
C9: 5 | D9: 835 | E9: 865 | F9: 895 | G9: 915 | H9: 950 | I9: 985 | J9: 1020 | K9: 1065 | L9: 1110
C10: 6 | D10: 760 | E10: 785 | F10: 810 | G10: 835 | H10: 865 | I10: 895 | J10: 915 | K10: 950 | L10: 985
C11: 7 | D11: 705 | E11: 720 | F11: 740 | G11: 760 | H11: 785 | I11: 810 | J11: 835 | K11: 865 | L11: 895
C12: 8 | D12: 660 | E12: 675 | F12: 690 | G12: 705 | H12: 720 | I12: 740 | J12: 760 | K12: 785 | L12: 810
C13: 9 | D13: 620 | E13: 630 | F13: 645 | G13: 660 | H13: 675 | I13: 690 | J13: 705 | K13: 720 | L13: 740
C14: 10 | D14: 590 | E14: 600 | F14: 610 | G14: 620 | H14: 630 | I14: 645 | J14: 660 | K14: 675 | L14: 690
C15: 11 | D15: 560 | E15: 570 | F15: 580 | G15: 590 | H15: 600 | I15: 610 | J15: 620 | K15: 630 | L15: 645
C16: 12 | D16: 545 | E16: 550 | F16: 555 | G16: 560 | H16: 570 | I16: 580 | J16: 590 | K16: 600 | L16: 610 | N16: D/ K | O16: Puan
C17: 13 | D17: 530 | E17: 535 | F17: 540 | G17: 545 | H17: 550 | I17: 555 | J17: 560 | K17: 570 | L17: 580 | N17: =CONCATENATE($C$5,D4) -> 11 | O17: =+N18 -> 1320
C18: 14 | D18: 515 | E18: 520 | F18: 525 | G18: 530 | H18: 535 | I18: 540 | J18: 545 | K18: 550 | L18: 555 | N18: 1320
C19: 15 | D19: 500 | E19: 505 | F19: 510 | G19: 515 | H19: 520 | I19: 525 | J19: 530 | K19: 535 | L19: 540 | N19: =CONCATENATE($C$6,D4) -> 21 | O19: =+N20 -> 1155
N20: 1155
N21: =CONCATENATE($C$7,D4) -> 31 | O21: =+N22 -> 1020
D22: 0 | E22: 55 | H22: 1 | N22: 1020
D23: =D22+100 -> 100 | E23: 55 | H23: 2 | N23: =CONCATENATE($C$8,D4) -> 41 | O23: =+N24 -> 915
D24: 200 | E24: 55 | H24: 3 | N24: 915
D25: 300 | E25: 55 | H25: 4 | N25: =CONCATENATE($C$9,D4) -> 51 | O25: =+N26 -> 835
D26: 400 | E26: 55 | H26: 5 | N26: 835
D27: 500 | E27: 55 | H27: 6 | N27: =CONCATENATE($C$10,D4) -> 61 | O27: =+N28 -> 760
D28: 600 | E28: 55 | H28: 7 | N28: 760
D29: 650 | E29: 55 | H29: 8 | N29: =CONCATENATE($C$11,D4) -> 71 | O29: =+N30 -> 705
D30: =D29+100 -> 750 | E30: 55 | H30: 9 | N30: 705
D31: 850 | E31: 55 | H31: 10 | N31: =CONCATENATE($C$12,D4) -> 81 | O31: =+N32 -> 660
D32: 950 | E32: 55 | H32: 11 | N32: 660
D33: 1050 | E33: 55 | H33: 12 | N33: =CONCATENATE($C$13,D4) -> 91 | O33: =+N34 -> 620
D34: 1150 | E34: 55 | H34: 13 | N34: 620
D35: 1250 | E35: 55 | H35: 14 | N35: =CONCATENATE($C$14,D4) -> 101 | O35: =+N36 -> 590
D36: 1350 | E36: 55 | H36: 15 | N36: 590
D37: 1450 | E37: 55 | H37: 16 | N37: =CONCATENATE($C$15,D4) -> 111 | O37: =+N38 -> 560
D38: 1550 | E38: 55 | H38: 17 | N38: 560
D39: 1650 | E39: 55 | H39: 18 | N39: =CONCATENATE($C$16,D4) -> 121 | O39: =+N40 -> 545
D40: 1750 | E40: 55 | H40: 19 | N40: 545
D41: 1850 | E41: 55 | H41: 20 | N41: =CONCATENATE($C$17,D4) -> 131 | O41: =+N42 -> 530
D42: 1950 | E42: 55 | H42: 21 | N42: 530
D43: 2050 | E43: 55 | H43: 22 | N43: =CONCATENATE($C$18,D4) -> 141 | O43: =+N44 -> 515
D44: 2150 | E44: 55 | H44: 23 | N44: 515
D45: 2200 | E45: 85 | H45: 24 | N45: =CONCATENATE($C$19,D4) -> 151 | O45: =+N46 -> 500
D46: =D45+100 -> 2300 | E46: 85 | H46: 25 | N46: 500
D47: 2400 | E47: 85 | N47: =CONCATENATE($C$5,E4) -> 12 | O47: =+N48 -> 1380 | Q47: =+P48 -> 0 | S47: =+R48 -> 0 | U47: =+T48 -> 0 | W47: =+V48 -> 0 | Y47: =+X48 -> 0 | AA47: =+Z48 -> 0 | AC47: =+AB48 -> 0
D48: 2500 | E48: 85 | N48: 1380
D49: 2600 | E49: 85 | N49: =CONCATENATE($C$6,E4) -> 22 | O49: =+N50 -> 1210
D50: 2700 | E50: 85 | N50: 1210
D51: 2800 | E51: 85 | N51: =CONCATENATE($C$7,E4) -> 32 | O51: =+N52 -> 1065
D52: 2900 | E52: 85 | N52: 1065
D53: 3000 | E53: 85 | N53: =CONCATENATE($C$8,E4) -> 42 | O53: =+N54 -> 950
D54: 3100 | E54: 85 | N54: 950
D55: 3200 | E55: 85 | N55: =CONCATENATE($C$9,E4) -> 52 | O55: =+N56 -> 865
D56: 3300 | E56: 85 | N56: 865
D57: 3400 | E57: 85 | N57: =CONCATENATE($C$10,E4) -> 62 | O57: =+N58 -> 785
D58: 3500 | E58: 85 | N58: 785
D59: 3600 | E59: 145 | N59: =CONCATENATE($C$11,E4) -> 72 | O59: =+N60 -> 720
D60: 3700 | E60: 145 | N60: 720
D61: 3800 | E61: 145 | N61: =CONCATENATE($C$12,E4) -> 82 | O61: =+N62 -> 675
D62: 3900 | E62: 145 | N62: 675
D63: 4000 | E63: 145 | N63: =CONCATENATE($C$13,E4) -> 92 | O63: =+N64 -> 630
D64: 4100 | E64: 145 | N64: 630
D65: 4200 | E65: 145 | N65: =CONCATENATE($C$14,E4) -> 102 | O65: =+N66 -> 600
D66: 4300 | E66: 145 | N66: 600
D67: 4400 | E67: 145 | N67: =CONCATENATE($C$15,E4) -> 112 | O67: =+N68 -> 570
D68: 4500 | E68: 145 | N68: 570
D69: 4600 | E69: 145 | N69: =CONCATENATE($C$16,E4) -> 122 | O69: =+N70 -> 550
D70: 4700 | E70: 145 | N70: 550
D71: 4800 | E71: 165 | N71: =CONCATENATE($C$17,E4) -> 132 | O71: =+N72 -> 535
D72: 4900 | E72: 165 | N72: 535
D73: 5000 | E73: 165 | N73: =CONCATENATE($C$18,E4) -> 142 | O73: =+N74 -> 520
D74: 5100 | E74: 165 | N74: 520
D75: 5200 | E75: 165 | N75: =CONCATENATE($C$19,E4) -> 152 | O75: =+N76 -> 505
D76: 5300 | E76: 165 | N76: 505
D77: 5400 | E77: 165 | N77: =CONCATENATE($C$5,F4) -> 13 | O77: =+N78 -> 1440
D78: 5500 | E78: 165 | N78: 1440
D79: 5600 | E79: 165 | N79: =CONCATENATE($C$6,F4) -> 23 | O79: =+N80 -> 1265
D80: 5700 | E80: 165 | N80: 1265
D81: 5800 | E81: 165 | N81: =CONCATENATE($C$7,F4) -> 33 | O81: =+N82 -> 1110
D82: 5900 | E82: 165 | N82: 1110
D83: 6000 | E83: 165 | N83: =CONCATENATE($C$8,F4) -> 43 | O83: =+N84 -> 985
D84: 6100 | E84: 165 | N84: 985
D85: 6200 | E85: 165 | N85: =CONCATENATE($C$9,F4) -> 53 | O85: =+N86 -> 895
D86: 6300 | E86: 165 | N86: 895
D87: 6400 | E87: 195 | N87: =CONCATENATE($C$10,F4) -> 63 | O87: =+N88 -> 810
D88: 6500 | E88: 195 | N88: 810
N89: =CONCATENATE($C$11,F4) -> 73 | O89: =+N90 -> 740
N90: 740
N91: =CONCATENATE($C$12,F4) -> 83 | O91: =+N92 -> 690
N92: 690
N93: =CONCATENATE($C$13,F4) -> 93 | O93: =+N94 -> 645
N94: 645
N95: =CONCATENATE($C$14,F4) -> 103 | O95: =+N96 -> 610
N96: 610
N97: =CONCATENATE($C$15,F4) -> 113 | O97: =+N98 -> 580
N98: 580
N99: =CONCATENATE($C$16,F4) -> 123 | O99: =+N100 -> 555
N100: 555
N101: =CONCATENATE($C$17,F4) -> 133 | O101: =+N102 -> 540
N102: 540
N103: =CONCATENATE($C$18,F4) -> 143 | O103: =+N104 -> 525
N104: 525
N105: =CONCATENATE($C$19,F4) -> 153 | O105: =+N106 -> 510
N106: 510
N107: =CONCATENATE($C$5,G4) -> 14 | O107: =+N108 -> 1500
N108: 1500
N109: =CONCATENATE($C$6,G4) -> 24 | O109: =+N110 -> 1320
N110: 1320
N111: =CONCATENATE($C$7,G4) -> 34 | O111: =+N112 -> 1155
N112: 1155
N113: =CONCATENATE($C$8,G4) -> 44 | O113: =+N114 -> 1020
N114: 1020
N115: =CONCATENATE($C$9,G4) -> 54 | O115: =+N116 -> 915
D116: =CONCATENATE('Derece Kademe'!$C$5,"/",'Derece Kademe'!D4) -> 1/1 | E116: =CONCATENATE('Derece Kademe'!$C$5,"/",'Derece Kademe'!E4) -> 1/2 | F116: =CONCATENATE('Derece Kademe'!$C$5,"/",'Derece Kademe'!F4) -> 1/3 | G116: =CONCATENATE('Derece Kademe'!$C$5,"/",'Derece Kademe'!G4) -> 1/4 | N116: 915
D117: =CONCATENATE('Derece Kademe'!$C$6,"/",'Derece Kademe'!D4) -> 2/1 | E117: =CONCATENATE('Derece Kademe'!$C$6,"/",'Derece Kademe'!E4) -> 2/2 | F117: =CONCATENATE('Derece Kademe'!$C$6,"/",'Derece Kademe'!F4) -> 2/3 | G117: =CONCATENATE('Derece Kademe'!$C$6,"/",'Derece Kademe'!G4) -> 2/4 | H117: =CONCATENATE('Derece Kademe'!$C$6,"/",'Derece Kademe'!H4) -> 2/5 | I117: =CONCATENATE('Derece Kademe'!$C$6,"/",'Derece Kademe'!I4) -> 2/6 | N117: =CONCATENATE($C$10,G4) -> 64 | O117: =+N118 -> 835
D118: =CONCATENATE('Derece Kademe'!$C$7,"/",'Derece Kademe'!D4) -> 3/1 | E118: =CONCATENATE('Derece Kademe'!$C$7,"/",'Derece Kademe'!E4) -> 3/2 | F118: =CONCATENATE('Derece Kademe'!$C$7,"/",'Derece Kademe'!F4) -> 3/3 | G118: =CONCATENATE('Derece Kademe'!$C$7,"/",'Derece Kademe'!G4) -> 3/4 | H118: =CONCATENATE('Derece Kademe'!$C$7,"/",'Derece Kademe'!H4) -> 3/5 | I118: =CONCATENATE('Derece Kademe'!$C$7,"/",'Derece Kademe'!I4) -> 3/6 | J118: =CONCATENATE('Derece Kademe'!$C$7,"/",'Derece Kademe'!J4) -> 3/7 | K118: =CONCATENATE('Derece Kademe'!$C$7,"/",'Derece Kademe'!K4) -> 3/8 | N118: 835
D119: =CONCATENATE('Derece Kademe'!$C$8,"/",'Derece Kademe'!D4) -> 4/1 | E119: =CONCATENATE('Derece Kademe'!$C$8,"/",'Derece Kademe'!E4) -> 4/2 | F119: =CONCATENATE('Derece Kademe'!$C$8,"/",'Derece Kademe'!F4) -> 4/3 | G119: =CONCATENATE('Derece Kademe'!$C$8,"/",'Derece Kademe'!G4) -> 4/4 | H119: =CONCATENATE('Derece Kademe'!$C$8,"/",'Derece Kademe'!H4) -> 4/5 | I119: =CONCATENATE('Derece Kademe'!$C$8,"/",'Derece Kademe'!I4) -> 4/6 | J119: =CONCATENATE('Derece Kademe'!$C$8,"/",'Derece Kademe'!J4) -> 4/7 | K119: =CONCATENATE('Derece Kademe'!$C$8,"/",'Derece Kademe'!K4) -> 4/8 | L119: =CONCATENATE('Derece Kademe'!$C$8,"/",'Derece Kademe'!L4) -> 4/9 | N119: =CONCATENATE($C$11,G4) -> 74 | O119: =+N120 -> 760
D120: =CONCATENATE('Derece Kademe'!$C$9,"/",'Derece Kademe'!D4) -> 5/1 | E120: =CONCATENATE('Derece Kademe'!$C$9,"/",'Derece Kademe'!E4) -> 5/2 | F120: =CONCATENATE('Derece Kademe'!$C$9,"/",'Derece Kademe'!F4) -> 5/3 | G120: =CONCATENATE('Derece Kademe'!$C$9,"/",'Derece Kademe'!G4) -> 5/4 | H120: =CONCATENATE('Derece Kademe'!$C$9,"/",'Derece Kademe'!H4) -> 5/5 | I120: =CONCATENATE('Derece Kademe'!$C$9,"/",'Derece Kademe'!I4) -> 5/6 | J120: =CONCATENATE('Derece Kademe'!$C$9,"/",'Derece Kademe'!J4) -> 5/7 | K120: =CONCATENATE('Derece Kademe'!$C$9,"/",'Derece Kademe'!K4) -> 5/8 | L120: =CONCATENATE('Derece Kademe'!$C$9,"/",'Derece Kademe'!L4) -> 5/9 | N120: 760
D121: =CONCATENATE('Derece Kademe'!$C$10,"/",'Derece Kademe'!D4) -> 6/1 | E121: =CONCATENATE('Derece Kademe'!$C$10,"/",'Derece Kademe'!E4) -> 6/2 | F121: =CONCATENATE('Derece Kademe'!$C$10,"/",'Derece Kademe'!F4) -> 6/3 | G121: =CONCATENATE('Derece Kademe'!$C$10,"/",'Derece Kademe'!G4) -> 6/4 | H121: =CONCATENATE('Derece Kademe'!$C$10,"/",'Derece Kademe'!H4) -> 6/5 | I121: =CONCATENATE('Derece Kademe'!$C$10,"/",'Derece Kademe'!I4) -> 6/6 | J121: =CONCATENATE('Derece Kademe'!$C$10,"/",'Derece Kademe'!J4) -> 6/7 | K121: =CONCATENATE('Derece Kademe'!$C$10,"/",'Derece Kademe'!K4) -> 6/8 | L121: =CONCATENATE('Derece Kademe'!$C$10,"/",'Derece Kademe'!L4) -> 6/9 | N121: =CONCATENATE($C$12,G4) -> 84 | O121: =+N122 -> 705
D122: =CONCATENATE('Derece Kademe'!$C$11,"/",'Derece Kademe'!D4) -> 7/1 | E122: =CONCATENATE('Derece Kademe'!$C$11,"/",'Derece Kademe'!E4) -> 7/2 | F122: =CONCATENATE('Derece Kademe'!$C$11,"/",'Derece Kademe'!F4) -> 7/3 | G122: =CONCATENATE('Derece Kademe'!$C$11,"/",'Derece Kademe'!G4) -> 7/4 | H122: =CONCATENATE('Derece Kademe'!$C$11,"/",'Derece Kademe'!H4) -> 7/5 | I122: =CONCATENATE('Derece Kademe'!$C$11,"/",'Derece Kademe'!I4) -> 7/6 | J122: =CONCATENATE('Derece Kademe'!$C$11,"/",'Derece Kademe'!J4) -> 7/7 | K122: =CONCATENATE('Derece Kademe'!$C$11,"/",'Derece Kademe'!K4) -> 7/8 | L122: =CONCATENATE('Derece Kademe'!$C$11,"/",'Derece Kademe'!L4) -> 7/9 | N122: 705
D123: =CONCATENATE('Derece Kademe'!$C$12,"/",'Derece Kademe'!D4) -> 8/1 | E123: =CONCATENATE('Derece Kademe'!$C$12,"/",'Derece Kademe'!E4) -> 8/2 | F123: =CONCATENATE('Derece Kademe'!$C$12,"/",'Derece Kademe'!F4) -> 8/3 | G123: =CONCATENATE('Derece Kademe'!$C$12,"/",'Derece Kademe'!G4) -> 8/4 | H123: =CONCATENATE('Derece Kademe'!$C$12,"/",'Derece Kademe'!H4) -> 8/5 | I123: =CONCATENATE('Derece Kademe'!$C$12,"/",'Derece Kademe'!I4) -> 8/6 | J123: =CONCATENATE('Derece Kademe'!$C$12,"/",'Derece Kademe'!J4) -> 8/7 | K123: =CONCATENATE('Derece Kademe'!$C$12,"/",'Derece Kademe'!K4) -> 8/8 | L123: =CONCATENATE('Derece Kademe'!$C$12,"/",'Derece Kademe'!L4) -> 8/9 | N123: =CONCATENATE($C$13,G4) -> 94 | O123: =+N124 -> 660
D124: =CONCATENATE('Derece Kademe'!$C$13,"/",'Derece Kademe'!D4) -> 9/1 | E124: =CONCATENATE('Derece Kademe'!$C$13,"/",'Derece Kademe'!E4) -> 9/2 | F124: =CONCATENATE('Derece Kademe'!$C$13,"/",'Derece Kademe'!F4) -> 9/3 | G124: =CONCATENATE('Derece Kademe'!$C$13,"/",'Derece Kademe'!G4) -> 9/4 | H124: =CONCATENATE('Derece Kademe'!$C$13,"/",'Derece Kademe'!H4) -> 9/5 | I124: =CONCATENATE('Derece Kademe'!$C$13,"/",'Derece Kademe'!I4) -> 9/6 | J124: =CONCATENATE('Derece Kademe'!$C$13,"/",'Derece Kademe'!J4) -> 9/7 | K124: =CONCATENATE('Derece Kademe'!$C$13,"/",'Derece Kademe'!K4) -> 9/8 | L124: =CONCATENATE('Derece Kademe'!$C$13,"/",'Derece Kademe'!L4) -> 9/9 | N124: 660
D125: =CONCATENATE('Derece Kademe'!$C$14,"/",'Derece Kademe'!D4) -> 10/1 | E125: =CONCATENATE('Derece Kademe'!$C$14,"/",'Derece Kademe'!E4) -> 10/2 | F125: =CONCATENATE('Derece Kademe'!$C$14,"/",'Derece Kademe'!F4) -> 10/3 | G125: =CONCATENATE('Derece Kademe'!$C$14,"/",'Derece Kademe'!G4) -> 10/4 | H125: =CONCATENATE('Derece Kademe'!$C$14,"/",'Derece Kademe'!H4) -> 10/5 | I125: =CONCATENATE('Derece Kademe'!$C$14,"/",'Derece Kademe'!I4) -> 10/6 | J125: =CONCATENATE('Derece Kademe'!$C$14,"/",'Derece Kademe'!J4) -> 10/7 | K125: =CONCATENATE('Derece Kademe'!$C$14,"/",'Derece Kademe'!K4) -> 10/8 | L125: =CONCATENATE('Derece Kademe'!$C$14,"/",'Derece Kademe'!L4) -> 10/9 | N125: =CONCATENATE($C$14,G4) -> 104 | O125: =+N126 -> 620
D126: =CONCATENATE('Derece Kademe'!$C$15,"/",'Derece Kademe'!D4) -> 11/1 | E126: =CONCATENATE('Derece Kademe'!$C$15,"/",'Derece Kademe'!E4) -> 11/2 | F126: =CONCATENATE('Derece Kademe'!$C$15,"/",'Derece Kademe'!F4) -> 11/3 | G126: =CONCATENATE('Derece Kademe'!$C$15,"/",'Derece Kademe'!G4) -> 11/4 | H126: =CONCATENATE('Derece Kademe'!$C$15,"/",'Derece Kademe'!H4) -> 11/5 | I126: =CONCATENATE('Derece Kademe'!$C$15,"/",'Derece Kademe'!I4) -> 11/6 | J126: =CONCATENATE('Derece Kademe'!$C$15,"/",'Derece Kademe'!J4) -> 11/7 | K126: =CONCATENATE('Derece Kademe'!$C$15,"/",'Derece Kademe'!K4) -> 11/8 | L126: =CONCATENATE('Derece Kademe'!$C$15,"/",'Derece Kademe'!L4) -> 11/9 | N126: 620
D127: =CONCATENATE('Derece Kademe'!$C$16,"/",'Derece Kademe'!D4) -> 12/1 | E127: =CONCATENATE('Derece Kademe'!$C$16,"/",'Derece Kademe'!E4) -> 12/2 | F127: =CONCATENATE('Derece Kademe'!$C$16,"/",'Derece Kademe'!F4) -> 12/3 | G127: =CONCATENATE('Derece Kademe'!$C$16,"/",'Derece Kademe'!G4) -> 12/4 | H127: =CONCATENATE('Derece Kademe'!$C$16,"/",'Derece Kademe'!H4) -> 12/5 | I127: =CONCATENATE('Derece Kademe'!$C$16,"/",'Derece Kademe'!I4) -> 12/6 | J127: =CONCATENATE('Derece Kademe'!$C$16,"/",'Derece Kademe'!J4) -> 12/7 | K127: =CONCATENATE('Derece Kademe'!$C$16,"/",'Derece Kademe'!K4) -> 12/8 | L127: =CONCATENATE('Derece Kademe'!$C$16,"/",'Derece Kademe'!L4) -> 12/9 | N127: =CONCATENATE($C$15,G4) -> 114 | O127: =+N128 -> 590
D128: =CONCATENATE('Derece Kademe'!$C$17,"/",'Derece Kademe'!D4) -> 13/1 | E128: =CONCATENATE('Derece Kademe'!$C$17,"/",'Derece Kademe'!E4) -> 13/2 | F128: =CONCATENATE('Derece Kademe'!$C$17,"/",'Derece Kademe'!F4) -> 13/3 | G128: =CONCATENATE('Derece Kademe'!$C$17,"/",'Derece Kademe'!G4) -> 13/4 | H128: =CONCATENATE('Derece Kademe'!$C$17,"/",'Derece Kademe'!H4) -> 13/5 | I128: =CONCATENATE('Derece Kademe'!$C$17,"/",'Derece Kademe'!I4) -> 13/6 | J128: =CONCATENATE('Derece Kademe'!$C$17,"/",'Derece Kademe'!J4) -> 13/7 | K128: =CONCATENATE('Derece Kademe'!$C$17,"/",'Derece Kademe'!K4) -> 13/8 | L128: =CONCATENATE('Derece Kademe'!$C$17,"/",'Derece Kademe'!L4) -> 13/9 | N128: 590
D129: =CONCATENATE('Derece Kademe'!$C$18,"/",'Derece Kademe'!D4) -> 14/1 | E129: =CONCATENATE('Derece Kademe'!$C$18,"/",'Derece Kademe'!E4) -> 14/2 | F129: =CONCATENATE('Derece Kademe'!$C$18,"/",'Derece Kademe'!F4) -> 14/3 | G129: =CONCATENATE('Derece Kademe'!$C$18,"/",'Derece Kademe'!G4) -> 14/4 | H129: =CONCATENATE('Derece Kademe'!$C$18,"/",'Derece Kademe'!H4) -> 14/5 | I129: =CONCATENATE('Derece Kademe'!$C$18,"/",'Derece Kademe'!I4) -> 14/6 | J129: =CONCATENATE('Derece Kademe'!$C$18,"/",'Derece Kademe'!J4) -> 14/7 | K129: =CONCATENATE('Derece Kademe'!$C$18,"/",'Derece Kademe'!K4) -> 14/8 | L129: =CONCATENATE('Derece Kademe'!$C$18,"/",'Derece Kademe'!L4) -> 14/9 | N129: =CONCATENATE($C$16,G4) -> 124 | O129: =+N130 -> 560
D130: =CONCATENATE('Derece Kademe'!$C$19,"/",'Derece Kademe'!D4) -> 15/1 | E130: =CONCATENATE('Derece Kademe'!$C$19,"/",'Derece Kademe'!E4) -> 15/2 | F130: =CONCATENATE('Derece Kademe'!$C$19,"/",'Derece Kademe'!F4) -> 15/3 | G130: =CONCATENATE('Derece Kademe'!$C$19,"/",'Derece Kademe'!G4) -> 15/4 | H130: =CONCATENATE('Derece Kademe'!$C$19,"/",'Derece Kademe'!H4) -> 15/5 | I130: =CONCATENATE('Derece Kademe'!$C$19,"/",'Derece Kademe'!I4) -> 15/6 | J130: =CONCATENATE('Derece Kademe'!$C$19,"/",'Derece Kademe'!J4) -> 15/7 | K130: =CONCATENATE('Derece Kademe'!$C$19,"/",'Derece Kademe'!K4) -> 15/8 | L130: =CONCATENATE('Derece Kademe'!$C$19,"/",'Derece Kademe'!L4) -> 15/9 | N130: 560
N131: =CONCATENATE($C$17,G4) -> 134 | O131: =+N132 -> 545
N132: 545
N133: =CONCATENATE($C$18,G4) -> 144 | O133: =+N134 -> 530
N134: 530
N135: =CONCATENATE($C$19,G4) -> 154 | O135: =+N136 -> 515
N136: 515
N137: =CONCATENATE($C$5,H4) -> 15 | O137: =+N138 -> --
N138: --
N139: =CONCATENATE($C$6,H4) -> 25 | O139: =+N140 -> 1380
N140: 1380
N141: =CONCATENATE($C$7,H4) -> 35 | O141: =+N142 -> 1210
N142: 1210
N143: =CONCATENATE($C$8,H4) -> 45 | O143: =+N144 -> 1065
N144: 1065
N145: =CONCATENATE($C$9,H4) -> 55 | O145: =+N146 -> 950
N146: 950
N147: =CONCATENATE($C$10,H4) -> 65 | O147: =+N148 -> 865
N148: 865
N149: =CONCATENATE($C$11,H4) -> 75 | O149: =+N150 -> 785
N150: 785
N151: =CONCATENATE($C$12,H4) -> 85 | O151: =+N152 -> 720
N152: 720
N153: =CONCATENATE($C$13,H4) -> 95 | O153: =+N154 -> 675
N154: 675
N155: =CONCATENATE($C$14,H4) -> 105 | O155: =+N156 -> 630
N156: 630
N157: =CONCATENATE($C$15,H4) -> 115 | O157: =+N158 -> 600
N158: 600
N159: =CONCATENATE($C$16,H4) -> 125 | O159: =+N160 -> 570
N160: 570
N161: =CONCATENATE($C$17,H4) -> 135 | O161: =+N162 -> 550
N162: 550
N163: =CONCATENATE($C$18,H4) -> 145 | O163: =+N164 -> 535
N164: 535
N165: =CONCATENATE($C$19,H4) -> 155 | O165: =+N166 -> 520
N166: 520
N167: =CONCATENATE($C$5,I4) -> 16 | O167: =+N168 -> --
N168: --
N169: =CONCATENATE($C$6,I4) -> 26 | O169: =+N170 -> 1440
N170: 1440
N171: =CONCATENATE($C$7,I4) -> 36 | O171: =+N172 -> 1265
N172: 1265
N173: =CONCATENATE($C$8,I4) -> 46 | O173: =+N174 -> 1110
N174: 1110
N175: =CONCATENATE($C$9,I4) -> 56 | O175: =+N176 -> 985
N176: 985
N177: =CONCATENATE($C$10,I4) -> 66 | O177: =+N178 -> 895
N178: 895
N179: =CONCATENATE($C$11,I4) -> 76 | O179: =+N180 -> 810
N180: 810
N181: =CONCATENATE($C$12,I4) -> 86 | O181: =+N182 -> 740
N182: 740
N183: =CONCATENATE($C$13,I4) -> 96 | O183: =+N184 -> 690
N184: 690
C185: =+'Bilgi Girişi'!F43 -> 0 | N185: =CONCATENATE($C$14,I4) -> 106 | O185: =+N186 -> 645
N186: 645
N187: =CONCATENATE($C$15,I4) -> 116 | O187: =+N188 -> 610
N188: 610
N189: =CONCATENATE($C$16,I4) -> 126 | O189: =+N190 -> 580
N190: 580
N191: =CONCATENATE($C$17,I4) -> 136 | O191: =+N192 -> 555
N192: 555
N193: =CONCATENATE($C$18,I4) -> 146 | O193: =+N194 -> 540
N194: 540
N195: =CONCATENATE($C$19,I4) -> 156 | O195: =+N196 -> 525
N196: 525
N197: =CONCATENATE($C$5,J4) -> 17 | O197: =+N198 -> --
N198: --
N199: =CONCATENATE($C$6,J4) -> 27 | O199: =+N200 -> --
N200: --
N201: =CONCATENATE($C$7,J4) -> 37 | O201: =+N202 -> 1320
... 86 more rows

Sheet Bordro
B5: Kurumu / Birimi | C5: =IF(C9=0,0,CONCATENATE(+'Bilgi Girişi'!G3," / ",'Bilgi Girişi'!J4)) -> 0
B6: Ait Olduğu Ay | C6: =+'Bilgi Girişi'!G4 -> 0
B7: Bütçe Yılı | C7: =IF(C9=0,0,+'Bilgi Girişi'!H4) -> 0
B8: PERSONEL BİLGİLERİ | D8: GELİRİN | F8: KESİNTİNİN
B9: =IF(C9=0,0,"T.C. Kimlik Numarası") -> 0 | C9: =+'Bilgi Girişi'!G8 -> 0 | D9: ADI | E9: T U T A R I | F9: ADI | G9: T U T A R I
B10: =IF(C10=0,0,"Adı Soyadı") -> 0 | C10: =+'Bilgi Girişi'!G11 -> 0 | D10: =IF(E10=0,0,"Aylık Tutar") -> 0 | E10: =+Hesaplamalar!F6 -> 0 | F10: =IF(G10=0,0,"Gelir Vergisi") -> 0 | G10: =+Hesaplamalar!V9 -> 0
B11: =IF(C11=0,0,"Kurum Sicil Numarası") -> 0 | C11: =+'Bilgi Girişi'!G9 -> 0 | D11: =IF(E11=0,0,"Ek Gosterge") -> 0 | E11: =+Hesaplamalar!F18 -> 0 | F11: =IF(G11=0,0,"Damga Vergisi") -> 0 | G11: =+Hesaplamalar!V14 -> 0
B12: =IF(C12=0,0,"Emekli sicil Numarası") -> 0 | C12: =+'Bilgi Girişi'!G10 -> 0 | D12: =IF(E12=0,0,"Taban Aylık") -> 0 | E12: =+Hesaplamalar!F13 -> 0 | F12: =IF(G12=0,0,"Emekli Keseneği (Devlet) %20") -> 0 | G12: =+Hesaplamalar!V15 -> 0
B13: =IF(C13=0,0,"Hizmet Sınıfı / Ünvanı") -> 0 | C13: =+'Bilgi Girişi'!G16 -> 0 | D13: =IF(E13=0,0,"Kıdem Aylık") -> 0 | E13: =+Hesaplamalar!F15 -> 0 | F13: =IF(G13=0,0,"Emekli Keseneği (Kişi) %16") -> 0 | G13: =+Hesaplamalar!V16 -> 0
B14: =IF(C14="",0,"Medeni Hali / Çocuk Sayısı") -> 0 | C14: =IF('Bilgi Girişi'!G4="","",CONCATENATE(+'Bilgi Girişi'!G12," / ",('Bilgi Girişi'!G14+'Bilgi Girişi'!H14))) ->  | D14: =IF(E14=0,0,"Yan Odeme") -> 0 | E14: =IF(Hesaplamalar!J27>0,Hesaplamalar!M30,+Hesaplamalar!J8) -> 0 | F14: =IF(G14=0,0,+D16) -> 0 | G14: =+E16 -> 0
B15: =IF(C15=0,0,"Kıdem Yılı") -> 0 | C15: =+'Bilgi Girişi'!G24 -> 0 | D15: =IF(E15=0,0,"Em.Kes.Karşılığı %20") -> 0 | E15: =+Hesaplamalar!V15 -> 0 | F15: =IF(G15=0,0,+D17) -> 0 | G15: =+E17 -> 0
B16: =IF(C16="",0,"Maaş Derece / Kademe") -> 0 | C16: =IF('Bilgi Girişi'!G4="","",CONCATENATE('Bilgi Girişi'!G18," / ",'Bilgi Girişi'!H18)) ->  | D16: =IF(E16=0,0,+Hesaplamalar!U29) -> 0 | E16: =+Hesaplamalar!V29 -> 0 | F16: =IF(G16=0,0,"Gen.Sag.Sig.Pir.(Devlet) %12") -> 0 | G16: =+E19 -> 0
B17: =IF(C15=0,0,"Ek Gosterge (Ödemeye Esas)") -> 0 | C17: =+'Bilgi Girişi'!G28 -> 0 | D17: =IF(E17=0,0,+Hesaplamalar!U30) -> 0 | E17: =+Hesaplamalar!V30 -> 0 | F17: =+D20 -> 0 | G17: =+E20 -> 0
B18: =IF(C18="",0,"Derece / Kademe (Emekliliğe Esas)") -> 0 | C18: =IF('Bilgi Girişi'!G4="","",IF('Bilgi Girişi'!G22="",CONCATENATE('Bilgi Girişi'!G21," / ",'Bilgi Girişi'!H21),CONCATENATE('Bilgi Girişi'!G22," / ",'Bilgi Girişi'!H22))) ->  | D18: =IF(E18=0,0,"Makam Tazminatı") -> 0 | E18: =+Hesaplamalar!J11 -> 0 | F18: =IF(G18=0,0,+Hesaplamalar!E37) -> 0 | G18: =+E20 -> 0
B19: =IF(C19=0,0,"Ek Gösterge (Emekliliğe Esas Devlet)") -> 0 | C19: =IF('Bilgi Girişi'!G29="",0,'Bilgi Girişi'!G29) -> 0 | D19: =IF(E19=0,0,"Gen.Sag.Sig.Pir.(Devlet) %12") -> 0 | E19: =+Hesaplamalar!AA9 -> 0 | F19: =IF(G19=0,0,+Hesaplamalar!U17) -> 0 | G19: =+Hesaplamalar!V17 -> 0
B20: =IF(C20=0,0,"Ek Gösterge (Emekliliğe Esas Şahıs)") -> 0 | C20: =IF('Bilgi Girişi'!G26="Evet",+'Bilgi Girişi'!G31,0) -> 0 | D20: =IF(E20=0,0,+Hesaplamalar!E38) -> 0 | E20: =+Hesaplamalar!F38 -> 0 | F20: =IF(G20=0,0,IF('Bilgi Girişi'!G35="",0,"Sendika Aidatı")) -> 0 | G20: =+Hesaplamalar!V22 -> 0
B21: =IF(C21=0,0,IF('Bilgi Girişi'!G32=0,0,"Raporlu Gun")) -> 0 | C21: =+'Bilgi Girişi'!G2 -> 0 | D21: =IF(E21=0,0,IF(Hesaplamalar!F24=0,0,"Aile Yardımı")) -> 0 | E21: =Hesaplamalar!F24 -> 0 | F21: =IF(G21=0,0,IF('Bilgi Girişi'!G38="EVET","Taahütlü İcra Kesintisi",0)) -> 0 | G21: =+Hesaplamalar!V23 -> 0
B22: =IF(C22=0,0,IF('Bilgi Girişi'!G33=0,0,"Sigorta (Özel Sağlık)")) -> 0 | C22: =+Hesaplamalar!Z24 -> 0 | D22: =IF(E22=0,0,IF('Bilgi Girişi'!F14=0,0,"ÇocukYardımı")) -> 0 | E22: =+Hesaplamalar!F25 -> 0 | F22: =IF(G22=0,0,IF('Bilgi Girişi'!K25="Evet","Normai İcra Kesintisi",0)) -> 0 | G22: =+Hesaplamalar!V24 -> 0
B23: =IF(C23=0,0,"Aylık Vergi Matrahı") -> 0 | C23: =+Hesaplamalar!V5 -> 0 | D23: =IF(E23=0,0,"Özel Hizmet Tazminatı") -> 0 | E23: =IF(Hesaplamalar!J27>0,Hesaplamalar!M29,+Hesaplamalar!J6) -> 0 | F23: =IF('Bilgi Girişi'!K26="Evet","Kefalet Kesintisi",0) -> 0 | G23: =+Hesaplamalar!V25 -> 0
B24: =IF(C24=0,0,"Geçen Aylar Vergi Matrahı Toplamı") -> 0 | C24: =+'Bilgi Girişi'!G34 -> 0 | D24: =IF(E24=0,0,IF('Bilgi Girişi'!K13=0,0,"Yabancı Dil Tazminatı")) -> 0 | E24: =((IF(Hesaplamalar!J18=0,Hesaplamalar!J21,Hesaplamalar!J18))) -> 0 | F24: =IF(+Hesaplamalar!U26<=0,+Hesaplamalar!U27,Hesaplamalar!U26) -> 0 | G24: =IF(+Hesaplamalar!V26<=0,+Hesaplamalar!V27,Hesaplamalar!V26) -> 0
B25: =IF(C25=0,0,"Asgari Geçim İndirimi Tutarı") -> 0 | C25: =+Hesaplamalar!V31 -> 0 | D25: =IF(E25=0,0,+Hesaplamalar!I15) -> 0 | E25: =+Hesaplamalar!J15 -> 0 | F25: =IF(G25=0,0,+Hesaplamalar!U21) -> 0 | G25: =+Hesaplamalar!V21 -> 0
D26: =IF(E26=0,0,IF(Hesaplamalar!J24=0,0,"Ek Öde.(666 KHK")) -> 0 | E26: =+Hesaplamalar!J24 -> 0 | F26: =IF(G26=0,0,IF('Bilgi Girişi'!K27="","","Nafaka Kesintisi")) -> 0 | G26: =+Hesaplamalar!V28 -> 0
D27: =IF(E27=0,0,+Hesaplamalar!I22) -> 0 | E27: =+Hesaplamalar!J22 -> 0
D28: =IF(E28=0,0,+Hesaplamalar!M7) -> 0 | E28: =+Hesaplamalar!N7 -> 0 | F28: Gelir Toplamı | G28: =SUM(E10:E34) -> 0
D29: =IF(E29=0,0,+Hesaplamalar!M8) -> 0 | E29: =+Hesaplamalar!N8 -> 0 | F29: Kesinti Toplamı | G29: =SUM(G10:G25) -> 0
D30: =IF(E30=0,0,+Hesaplamalar!M11) -> 0 | E30: =+Hesaplamalar!N11 -> 0 | F30: Net Ödenen | G30: =G28-G29 -> 0
D31: =IF(E31=0,0,+Hesaplamalar!M6) -> 0 | E31: =+Hesaplamalar!N6 -> 0
D32: =IF(E32=0,0,IF('Bilgi Girişi'!G35="",0,"Top.Söz.İkram.")) -> 0 | E32: =+Hesaplamalar!N13 -> 0 | F32: Toplam Ödenen | G32: =G30 -> 0
D33: =IF(E33=0,0,+Hesaplamalar!I16) -> 0 | E33: =+Hesaplamalar!J16 -> 0
D34: =IF(E34=0,0,+Hesaplamalar!M9) -> 0 | E34: =+Hesaplamalar!N9 -> 0
B39: =+'Bilgi Girişi'!F43 -> 0

Sheet Sayfa1
